{"text_format":"1","workbook":"xlsx","n_sheets":10,"sheets":["Начална","1-Баланс","2-Отчет за доходите","3-Отчет за паричния поток","4-Отчет за собствения капитал","Справка 5","Контроли","Показатели","Danni","Nomenklaturi"],"not_rendered":{"charts":0,"images":0,"macros":0,"external_links":0,"defined_names":36,"comments":0,"pivot_tables":0},"unopened":[],"bounds":{"document_bytes":16777216,"sheet_cells":100000,"rows_first":2000,"rows_last":500,"rows_between":2000,"halvings":0,"cell_chars":16384,"cell_head_chars":4096},"cells_cut":0,"cells_raw":0,"read":"whole","date_system":"1900"}

{"sheet":"Начална","index":0,"n_rows":29,"n_cols":27,"rows_kept":29,"cut":false,"hidden":false,"merged":[]}
["СПРАВКИ",null,null,null,null,null,null,null,null,null,null,null,null,null,null,null,null,null,null,null,null,null,null,null,null,1,{"$f":"IF(ISBLANK(_endDate),\"\",_endDate)","v":42825}]
["уведомления - първо, трето и четвърто тримесечие",null,null,null,null,null,null,null,null,null,null,null,null,null,null,null,null,null,null,null,null,null,null,null,null,2,{"$f":"IF(ISBLANK(_pdeReportingDate),\"\",_pdeReportingDate)","v":42849}]
["на индивидуална основа",null,null,null,null,null,null,null,null,null,null,null,null,null,null,null,null,null,null,null,null,null,null,null,null,3,{"$f":"IF(ISBLANK(_authorName),\"\",_authorName)","v":"Катинка Иванова Ангелова"}]
["по чл. 33а1, т. 1 от Наредба № 2"]
["за публични дружества, други емитенти на ценни книжа, \nакционерни дружества със специална инвестиционна цел и \nлица по §1д от ЗППЦК"]
[]
[]
["Данни за отчетния период"]
["Начална дата:","2017-01-01"]
["Крайна дата:","2017-03-31"]
["Дата на съставяне:","2017-04-24"]
[]
["Данни за лицето"]
["Наименование на лицето:","\"МБАЛ - ТЪРГОВИЩЕ\" АД"]
["Тип лице:","Лице по §1д от ЗППЦК"]
["ЕИК:","125501290"]
["Представляващ/и:","д-р Иван Василев Светулков"]
["Начин на представляване:","Изпълнителен Директор"]
["Адрес на управление:","гр.Търговище, кв.Запад "]
["Адрес за кореспонденция:","гр.Търговище, кв.Запад "]
["Телефон:","0601/68888"]
["Факс:","0601/"]
["E-mail:","mbal_trg@mail.bg"]
["Уеб сайт:","www.infostock.bg"]
["Медия:","disclosure@infostock.bg"]
["Съставител на отчета:","Катинка Иванова Ангелова"]
["Длъжност на съставителя:","Главен Счетоводител"]
[]
["* Последна актуализация на 14.09.2016 г."]

{"sheet":"1-Баланс","index":1,"n_rows":104,"n_cols":8,"rows_kept":104,"cut":false,"hidden":false,"merged":[[105,1,105,4],[106,1,106,4],[107,1,107,4],[108,1,108,4],[97,1,97,7],[99,1,99,7],[101,1,101,7],[102,1,102,4],[103,1,103,4],[104,1,104,4]]}
["СЧЕТОВОДЕН  БАЛАНС "]
[{"$f":"CONCATENATE(\"(\",LOWER(reportConsolidation),\")\")","v":"(на индивидуална основа)"}]
[]
[{"$f":"CONCATENATE(\"на \",UPPER(pdeName))","v":"на \"МБАЛ - ТЪРГОВИЩЕ\" АД"}]
[{"$f":"CONCATENATE(\"ЕИК по БУЛСТАТ: \", pdeBulstat)","v":"ЕИК по БУЛСТАТ: 125501290"}]
[{"$f":"CONCATENATE(\"към \",TEXT(endDate,\"dd.mm.yyyy\"),\" г.\")","v":"към 31.03.2017 г."}]
[null,null,null,null,null,null,null,"(в хил.лева)"]
["АКТИВИ","Код на реда ","Текущ период ","Предходен период "," СОБСТВЕН КАПИТАЛ, МАЛЦИНСТВЕНО УЧАСТИЕ  И ПАСИВИ ","Код на реда ","Текущ период","Предходен период"]
["а","б",1,2,"а","б",1,2]
["А. НЕТЕКУЩИ АКТИВИ ",null,null,null,"А. СОБСТВЕН КАПИТАЛ"]
["I. Имоти, машини, съоръжения и оборудване",null,null,null,"I. Основен капитал "]
["1. Земи (терени )","1-0011",846,846,"Записан и внесен капитал т.ч.:  ","1-0411",3401,3401]
["2. Сгради и конструкции","1-0012",3976,4006,"обикновени акции","1-0411-1"]
["3. Машини и оборудване ","1-0013",1329,1253,"привилегировани акции","1-0411-2"]
["4. Съоръжения","1-0014",310,315,"Изкупени собствени обикновени акции","1-0417"]
["5. Транспортни средства ","1-0015",37,43,"Изкупени собствени привилегировани акции","1-0417-1"]
["6. Стопански инвентар","1-0017-1",97,122,"Невнесен капитал","1-0416"]
["7. Разходи за придобиване и ликвидация на дълготрайни материални активи","1-0018",null,null,"Общо за група І:","1-0410",{"$f":"G12+G15+G16+G17","v":3401},{"$f":"H12+H15+H16+H17","v":3401}]
["8. Други ","1-0017",null,null,"II. Резерви"]
["Общо за група I:","1-0010",{"$f":"SUM(C12:C19)","v":6595},{"$f":"SUM(D12:D19)","v":6585},"1. Премийни резерви  при емитиране на ценни книжа ","1-0421"]
["II. Инвестиционни имоти ","1-0041",null,null,"2. Резерв от последващи оценки на активите и пасивите","1-0422",2558,2558]
["III. Биологични активи ","1-0016",null,null,"3. Целеви резерви, в т.ч.:","1-0423",{"$f":"SUM(G23:G25)","v":263},{"$f":"SUM(H23:H25)","v":263}]
["IV. Нематериални активи",null,null,null,"общи резерви","1-0424",165,165]
["1. Права върху собственост","1-0021",null,null,"специализирани резерви","1-0425"]
["2. Програмни продукти","1-0022",1,1,"други резерви","1-0426",98,98]
["3. Продукти от развойна дейност","1-0023",null,null,"Общо за група II:","1-0420",{"$f":"G20+G21+G22","v":2821},{"$f":"H20+H21+H22","v":2821}]
["4. Други ","1-0024",null,null,"III. Финансов резултат"]
["Общо за група IV:","1-0020",{"$f":"SUM(C24:C27)","v":1},{"$f":"SUM(D24:D27)","v":1},"1. Натрупана печалба  (загуба) в т.ч.:","1-0451",{"$f":"SUM(G29:G31)","v":-1684},{"$f":"SUM(H29:H31)","v":-1063}]
[null,null,null,null,"неразпределена печалба","1-0452"]
["V. Търговска репутация",null,null,null,"непокрита загуба","1-0453",-1684,-1063]
["1. Положителна репутация","1-0051",null,null,"еднократен ефект от промени в счетоводната политика ","1-0451-1"]
["2. Отрицателна репутация","1-0052",null,null,"2. Текуща печалба","1-0454"]
["Общо за група V:","1-0050",{"$f":"C31+C32","v":0},{"$f":"D31+D32","v":0},"3. Текуща загуба","1-0455",-12,-621]
["VI. Финансови активи",null,null,null,"Общо за група III:","1-0450",{"$f":"G28+G32+G33","v":-1696},{"$f":"H28+H32+H33","v":-1684}]
["1. Инвестиции в: ","1-0031",{"$f":"SUM(C36:C39)","v":2},{"$f":"SUM(D36:D39)","v":2}]
["дъщерни предприятия","1-0032"]
["смесени предприятия","1-0033",null,null,"ОБЩО  ЗА РАЗДЕЛ \"А\" (I+II+III):","1-0400",{"$f":"G26+G18+G34","v":4526},{"$f":"H26+H18+H34","v":4538}]
["асоциирани предприятия","1-0034",2,2]
["други предприятия","1-0035"]
["2. Държани до настъпване на падеж ","1-0042",{"$f":"C41+C42+C44","v":0},{"$f":"D41+D42+D44","v":0},"Б. МАЛЦИНСТВЕНО УЧАСТИЕ","1-0400-1"]
["държавни ценни книжа ","1-0042-1"]
["облигации, в т.ч.: ","1-0042-2",null,null,"В. НЕТЕКУЩИ ПАСИВИ "]
["общински облигации ","1-0042-3",null,null,"I. Търговски и други задължения"]
["други инвестиции, държани до настъпване на падеж","1-0042-4",null,null,"1. Задължения към свързани предприятия","1-0511"]
["3. Други ","1-0042-5",null,null,"2.Задължения по получени заеми от банки и небанкови финансови институции","1-0512"]
["Общо за група VI:","1-0040",{"$f":"C35+C40+C45","v":2},{"$f":"D35+D40+D45","v":2},"3. Задължения по ЗУНК","1-0512-1"]
["VII. Търговски и други вземания",null,null,null,"4. Задължения по получени търговски заеми","1-0514"]
["1. Вземания от свързани предприятия","1-0044",null,null,"5. Задължения по облигационни заеми","1-0515"]
["2. Вземания по търговски заеми","1-0045",null,null,"6. Други ","1-0517"]
["3. Вземания по финансов лизинг ","1-0046-1",null,null,"Общо за група I:","1-0510",{"$f":"SUM(G44:G49)","v":0},{"$f":"SUM(H44:H49)","v":0}]
["4. Други ","1-0046"]
["Общо за група VII:","1-0040-1",{"$f":"SUM(C48:C51)","v":0},{"$f":"SUM(D48:D51)","v":0},"II. Други нетекущи пасиви ","1-0510-1"]
[" ",null,null,null,"III. Приходи за бъдещи периоди ","1-0520"]
["VIII. Разходи за бъдещи периоди ","1-0060",null,null,"IV. Пасиви по отсрочени данъци ","1-0516"]
["IX. Активи по отсрочени данъци  ","1-0060-1",205,205,"V.Финансирания ","1-0520-1"]
["ОБЩО  ЗА РАЗДЕЛ \"А\" (I+II+III+IV+V+VI+VII+VIII+IX):","1-0100",{"$f":"C20+C21+C22+C28+C33+C46+C52+C54+C55","v":6803},{"$f":"D20+D21+D22+D28+D33+D46+D52+D54+D55","v":6793},"ОБЩО  ЗА РАЗДЕЛ \"В\" (I+II+III+IV+V):","1-0500",{"$f":"G50+G52+G53+G54+G55","v":0},{"$f":"H50+H52+H53+H54+H55","v":0}]
["Б. ТЕКУЩИ АКТИВИ ",null,null,null,"Г. ТЕКУЩИ ПАСИВИ"]
["I. Материални запаси",null,null,null,"I. Търговски и други задължения"]
["1. Материали","1-0071",159,207,"1. Задължения по получени заеми към банки и  небанкови финансови институции","1-0612"]
["2. Продукция","1-0072",null,null,"2. Текуща част от нетекущите задължения ","1-0510-2"]
["3. Стоки","1-0073",null,null,"3. Текущи задължения, в т.ч.:  ","1-0630",{"$f":"SUM(G62:G68)","v":3484},{"$f":"SUM(H62:H68)","v":3522}]
["4. Незавършено производство","1-0076",null,null,"задължения към свързани предприятия","1-0611"]
["5. Биологични активи ","1-0074",null,null,"задължения по получени търговски заеми ","1-0614"]
["6. Други","1-0077",null,null,"задължения към доставчици и клиенти ","1-0613",2570,2595]
["Общо за група I:","1-0070",{"$f":"SUM(C59:C64)","v":159},{"$f":"SUM(D59:D64)","v":207},"получени аванси","1-0613-1"]
[null,null,null,null,"задължения към персонала","1-0615",619,650]
["II. Търговски и  други вземания",null,null,null,"задължения към осигурителни предприятия","1-0616",245,238]
["1. Вземания от свързани предприятия ","1-0081",null,null,"данъчни задължения","1-0617",50,39]
["2. Вземания от клиенти и доставчици","1-0082",1577,1440,"4. Други ","1-0618",106,97]
["3. Предоставени аванси ","1-0086-1",null,null,"5. Провизии ","1-0619"]
["4. Вземания по предоставени търговски заеми","1-0083",null,null,"Общо за група І:","1-0610",{"$f":"G59+G60+G61+G69+G70","v":3590},{"$f":"H59+H60+H61+H69+H70","v":3619}]
["5. Съдебни и присъдени вземания","1-0084"]
["6. Данъци за възстановяване","1-0085",null,null,"II. Други текущи пасиви ","1-0610-1"]
["7. Вземания от персонала ","1-0086-2"]
["8. Други","1-0086",5,6,"III. Приходи за бъдещи периоди ","1-0700",1000,1000]
["Общо за група II:","1-0080",{"$f":"SUM(C68:C75)","v":1582},{"$f":"SUM(D68:D75)","v":1446}]
[null,null,null,null,"IV. Финансирания ","1-0700-1",523,414]
["III.Финансови активи "]
["1. Финансови активи, държани за търгуване в т. ч.","1-0093",{"$f":"SUM(C80:C82)","v":0},{"$f":"SUM(D80:D82)","v":0}," ОБЩО  ЗА РАЗДЕЛ \"Г\" (I+II+III+IV):","1-0750",{"$f":"G71+G73+G75+G77","v":5113},{"$f":"H71+H73+H75+H77","v":5033}]
["дългови ценни книжа ","1-0093-1"]
["дeривативи","1-0093-2"]
["други ","1-0093-3"]
["2. Финансови активи, обявени за продажба  ","1-0093-4"]
["3. Други ","1-0095"]
["Общо за група III: ","1-0090",{"$f":"C84+C83+C79","v":0},{"$f":"D84+D83+D79","v":0}]
[]
["IV. Парични средства и парични еквиваленти"]
["1. Парични средства в брой","1-0151",8,8]
["2. Парични средства в безсрочни депозити","1-0153",1087,1117]
["3. Блокирани парични средства ","1-0155"]
["4. Парични еквиваленти","1-0157"]
["Общо за група  IV:","1-0150",{"$f":"SUM(C88:C91)","v":1095},{"$f":"SUM(D88:D91)","v":1125}]
["V. Разходи за бъдещи периоди ","1-0160"]
["ОБЩО  ЗА РАЗДЕЛ \"Б\"(I+II+III+IV+V)","1-0200",{"$f":"C65+C76+C85+C92+C93","v":2836},{"$f":"D65+D76+D85+D92+D93","v":2778}]
["ОБЩО АКТИВИ (А + Б):","1-0300",{"$f":"C94+C56","v":9639},{"$f":"D94+D56","v":9571},"СОБСТВЕН КАПИТАЛ, МАЛЦИНСТВЕНО УЧАСТИЕ И ПАСИВИ (А+Б+В+Г):","1-0800",{"$f":"G37+G40+G56+G79","v":9639},{"$f":"H37+H40+H56+H79","v":9571}]
[]
[]
["Дата на съставяне:",{"$f":"pdeReportingDate","v":"2017-04-24"}]
[]
["Съставител:",{"$f":"authorName","v":"Катинка Иванова Ангелова"}]
[]
["Представляващ/и:"]
[null,".............................................."]
[null,"/д-р Иван Василев Светулков/"]

{"sheet":"2-Отчет за доходите","index":2,"n_rows":56,"n_cols":8,"rows_kept":56,"cut":false,"hidden":false,"merged":[[60,1,60,4],[46,0,46,4],[49,1,49,7],[51,1,51,7],[53,1,53,7],[54,1,54,4],[55,1,55,4],[56,1,56,4],[57,1,57,4],[58,1,58,4],[59,1,59,4]]}
["ОТЧЕТ ЗА ДОХОДИТЕ"]
[{"$f":"CONCATENATE(\"(\",LOWER(reportConsolidation),\")\")","v":"(на индивидуална основа)"}]
[]
[{"$f":"CONCATENATE(\"на \",UPPER(pdeName))","v":"на \"МБАЛ - ТЪРГОВИЩЕ\" АД"}]
[{"$f":"CONCATENATE(\"ЕИК по БУЛСТАТ: \", pdeBulstat)","v":"ЕИК по БУЛСТАТ: 125501290"}]
[{"$f":"CONCATENATE(\"към \",TEXT(endDate,\"dd.mm.yyyy\"),\" г.\")","v":"към 31.03.2017 г."}]
[null,null,null,null,null,null,null,"(в хил.лева)"]
["РАЗХОДИ ","Код на реда ","Текущ период ","Предходен период","ПРИХОДИ ","Код на реда ","Текущ период ","Предходен период"]
["а","б",1,2,"а","б",1,2]
["А. Разходи за дейността",null,null,null,"А. Приходи от дейността"]
["I. Разходи по икономически елементи",null,null,null,"I. Нетни приходи от продажби на:"]
["1. Разходи за материали","2-1120",1227,1260,"1. Продукция","2-1551",5,6]
["2. Разходи за външни услуги ","2-1130",167,157,"2. Стоки","2-1552"]
["3. Разходи за амортизации","2-1160",110,109,"3. Услуги","2-1560",2995,3043]
["4. Разходи за възнаграждения","2-1140",1638,1776,"4. Други ","2-1556"]
["5. Разходи за осигуровки","2-1150",307,323,"Общо за група I:","2-1610",{"$f":"SUM(G12:G15)","v":3000},{"$f":"SUM(H12:H15)","v":3049}]
["6. Балансова стойност на продадени активи (без продукция)","2-1010"]
["7. Изменение на запасите от продукция и незавършено производство","2-1030",null,null,"II. Приходи от финансирания ","2-1620",452,61]
["8. Други, в т.ч.: ","2-1170",14,14,"в т.ч. от правителството ","2-1621",398,398]
["обезценка на активи ","2-1171"]
["провизии","2-1172",null,null,"III. Финансови   приходи"]
["Общо за група I:","2-1100",{"$f":"SUM(C12:C18)+C19","v":3463},{"$f":"SUM(D12:D18)+D19","v":3639},"1. Приходи от лихви ","2-1710"]
[null,null,null,null,"2. Приходи от дивиденти ","2-1721"]
["II. Финансови   разходи",null,null,null,"3. Положителни разлики от операции с финансови активи и инструменти","2-1730"]
["1. Разходи за лихви","2-1210",null,null,"4. Положителни разлики от промяна на валутни курсове","2-1740"]
["2. Отрицателни разлики от операции с финансови активи и инструменти","2-1220",null,null,"5. Други ","2-1745"]
["3. Отрицателни разлики от промяна на валутни курсове","2-1230",null,null,"Общо за група III:","2-1700",{"$f":"SUM(G22:G26)","v":0},{"$f":"SUM(H22:H26)","v":0}]
["4. Други ","2-1240",1,1]
["Общо за група II:","2-1200",{"$f":"SUM(C25:C28)","v":1},{"$f":"SUM(D25:D28)","v":1}]
[]
["Б. Общо разходи за дейността (I + II)","2-1300",{"$f":"C29+C22","v":3464},{"$f":"D29+D22","v":3640},"Б.   Общо приходи от дейността \n(I + II + III):","2-1600",{"$f":"G16+G18+G27","v":3452},{"$f":"H16+H18+H27","v":3110}]
[]
["В.  Печалба от дейността","2-1310",{"$f":"IF((G31-C31)>0,G31-C31,0)","v":0},{"$f":"IF((H31-D31)>0,H31-D31,0)","v":0},"В. Загуба от дейността","2-1810",{"$f":"IF((C31-G31)>0,C31-G31,0)","v":12},{"$f":"IF((D31-H31)>0,D31-H31,0)","v":530}]
["III. Дял от печалбата на асоциирани и съвместни предприятия","2-1250-1",null,null,"IV. Дял от загубата на асоциирани и съвместни предприятия","2-1810-1"]
["IV. Извънредни разходи","2-1250",null,null,"V. Извънредни приходи ","2-1750"]
["Г. Общо разходи  (Б+ III +IV)","2-1350",{"$f":"C31-C34+C35","v":3464},{"$f":"D31-D34+D35","v":3640},"Г. Общо приходи   (Б + IV + V)","2-1800",{"$f":"G35-G34+G31","v":3452},{"$f":"H35-H34+H31","v":3110}]
["Д. Печалба преди облагане с данъци","2-1400",{"$f":"IF((G36-C36)>0,G36-C36,0)","v":0},{"$f":"IF((H36-D36)>0,H36-D36,0)","v":0},"Д. Загуба преди облагане с данъци ","2-1850",{"$f":"IF((C36-G36)>0,C36-G36,0)","v":12},{"$f":"IF((D36-H36)>0,D36-H36,0)","v":530}]
["V. Разходи за данъци","2-1450",{"$f":"C39+C40+C41","v":0},{"$f":"D39+D40+D41","v":0}]
["1.Разходи за текущи корпоративни данъци върху печалбата ","2-1451"]
["2. Разход /(икономия) на отсрочени корпоративни данъци върху печалбата  ","2-1452"]
["3. Други","2-1453"]
["E. Печалба след облагане с данъци (Д - V)","2-0454",{"$f":"+IF((G36-C36-C38)>0,G36-C36-C38,0)","v":0},{"$f":"+IF((H36-D36-D38)>0,H36-D36-D38,0)","v":0},"E. Загуба след облагане с данъци (Д + V)","2-0455",{"$f":"IF(G37>0,IF(C38+G37<0,0,C38+G37),IF(C37-C38<0,C38-C37,0))","v":12},{"$f":"IF(H37>0,IF(D38+H37<0,0,D38+H37),IF(D37-D38<0,D38-D37,0))","v":530}]
["в т.ч. за малцинствено участие ","2-0454-1",null,null,"в т.ч. за малцинствено участие ","2-0455-1"]
["Ж. Нетна печалба за периода ","2-0454-2",{"$f":"IF(G42=0,IF(C42-C43>0,C42-C43+G43,0),IF(G42-G43<0,G43-G42+C42,0))","v":0},{"$f":"IF(H42=0,IF(D42-D43>0,D42-D43+H43,0),IF(H42-H43<0,H43-H42+D42,0))","v":0},"Ж. Нетна загуба за периода ","2-0455-2",{"$f":"IF(C42=0,IF(G42-G43>0,G42-G43+C43,0),IF(C42-C43<0,C43-C42+G43,0))","v":12},{"$f":"IF(D42=0,IF(H42-H43>0,H42-H43+D43,0),IF(D42-D43<0,D43-D42+H43,0))","v":530}]
["Всичко (Г+ V + Е):","2-1500",{"$f":"C36+C38+C42","v":3464},{"$f":"D36+D38+D42","v":3640},"Всичко (Г + E):","2-1900",{"$f":"G42+G36","v":3464},{"$f":"H42+H36","v":3640}]
[]
["Забележка:  Справка № 2 - Отчет за доходите се изготвя само с натрупване."]
[]
[]
["Дата на съставяне:",{"$f":"pdeReportingDate","v":"2017-04-24"}]
[]
["Съставител:",{"$f":"authorName","v":"Катинка Иванова Ангелова"}]
[]
["Представляващ/и:"]
[null,".................................................."]
[null,"/д-р Иван Василев Светулков/"]

{"sheet":"3-Отчет за паричния поток","index":3,"n_rows":62,"n_cols":4,"rows_kept":62,"cut":false,"hidden":false,"merged":[[63,1,63,4],[64,1,64,4],[53,1,53,4],[54,1,54,4],[55,1,55,4],[56,1,56,4],[57,1,57,4],[62,1,62,4],[50,0,50,3],[58,1,58,4],[59,1,59,4],[60,1,60,4],[61,1,61,4]]}
[" ОТЧЕТ ЗА ПАРИЧНИТЕ ПОТОЦИ ПО ПРЕКИЯ МЕТОД"]
[{"$f":"CONCATENATE(\"(\",LOWER(reportConsolidation),\")\")","v":"(на индивидуална основа)"}]
[]
[{"$f":"CONCATENATE(\"на \",UPPER(pdeName))","v":"на \"МБАЛ - ТЪРГОВИЩЕ\" АД"}]
[{"$f":"CONCATENATE(\"ЕИК по БУЛСТАТ: \", pdeBulstat)","v":"ЕИК по БУЛСТАТ: 125501290"}]
[{"$f":"CONCATENATE(\"към \",TEXT(endDate,\"dd.mm.yyyy\"),\" г.\")","v":"към 31.03.2017 г."}]
[null,null,null,"(в хил.лева)"]
["ПАРИЧНИ ПОТОЦИ","Код на реда ","Текущ период ","Предходен период"]
["а","б",1,2]
["А. Парични потоци от оперативна дейност"]
["1. Постъпления от клиенти ","3-2201",3272,2907]
["2. Плащания на доставчици","3-2201-1",-1431,-1603]
["3. Плащания/постъпления, свързани с финансови активи, държани с цел търговия ","3-2202"]
["4. Плащания, свързани с възнаграждения","3-2203",-1929,-1973]
["5. Платени /възстановени данъци (без корпоративен данък върху печалбата)","3-2206"]
["6. Платени корпоративни данъци върху печалбата","3-2206-1"]
["7. Получени лихви ","3-2204"]
["8. Платени банкови такси и лихви върху краткосрочни заеми за оборотни средства ","3-2204-1"]
["9. Курсови разлики","3-2205"]
["10. Други постъпления /плащания от оперативна дейност","3-2208",59,31]
[" Нетен паричен поток от оперативна дейност (А):","3-2200",{"$f":"SUM(C11:C20)","v":-29},{"$f":"SUM(D11:D20)","v":-638}]
["Б. Парични потоци от инвестиционна дейност"]
["1. Покупка на дълготрайни активи ","3-2301"]
["2. Постъпления от  продажба на дълготрайни активи","3-2301-1"]
["3. Предоставени заеми","3-2302"]
["4. Възстановени (платени) предоставени заеми, в т.ч. по финансов  лизинг","3-2302-1"]
["5. Получени лихви по предоставени заеми ","3-2302-2"]
["6. Покупка на инвестиции ","3-2302-3"]
["7. Постъпления от продажба на инвестиции","3-2302-4"]
["8. Получени дивиденти от инвестиции ","3-2303"]
["9. Курсови разлики","3-2305"]
["10. Други постъпления/ плащания от инвестиционна дейност","3-2306"]
["Нетен поток от инвестиционна дейност (Б):","3-2300",{"$f":"SUM(C23:C32)","v":0},{"$f":"SUM(D23:D32)","v":0}]
["В. Парични потоци от финансова дейност"]
["1. Постъпления от емитиране на ценни книжа","3-2401"]
["2. Плащания при обратно придобиване на ценни книжа","3-2401-1"]
["3. Постъпления от заеми ","3-2403"]
["4. Платени  заеми ","3-2403-1"]
["5. Платени задължения по лизингови договори","3-2405"]
["6. Платени  лихви, такси, комисиони по заеми с инвестиционно предназначение ","3-2404"]
["7 . Изплатени дивиденти","3-2404-1"]
["8. Други постъпления/ плащания от финансова дейност","3-2407",-1,-1]
["Нетен паричен поток от финансова дейност (В):","3-2400",{"$f":"SUM(C35:C42)","v":-1},{"$f":"SUM(D35:D42)","v":-1}]
["Г. Изменения на паричните средства през периода (А+Б+В):","3-2500",{"$f":"C43+C33+C21","v":-30},{"$f":"D43+D33+D21","v":-639}]
["Д. Парични средства в началото на периода","3-2600",1125,792]
["Е. Парични средства в края на периода, в т.ч.: ","3-2700",{"$f":"C45+C44","v":1095},{"$f":"D45+D44","v":153}]
["наличност в касата и по банкови сметки ","3-2700-1"]
["блокирани парични средства  ","3-2700-2"]
[]
["Забележка:"]
["В клетката \"Парични средства в началото на периода\" се поставя стойността на на паричните средства в началото на съответната година."]
[]
[]
["Дата на съставяне:",{"$f":"pdeReportingDate","v":"2017-04-24"}]
[]
["Съставител:",{"$f":"authorName","v":"Катинка Иванова Ангелова"}]
[]
["Представляващ/и:"]
[null,"........................."]
[null,"/д-р Иван Василев Светулков/"]
[]
[null,"........................."]

{"sheet":"4-Отчет за собствения капитал","index":4,"n_rows":44,"n_cols":13,"rows_kept":44,"cut":false,"hidden":false,"merged":[[45,1,45,4],[46,1,46,4],[47,1,47,4],[48,1,48,4],[37,1,37,7],[39,1,39,7],[41,1,41,7],[42,1,42,4],[43,1,43,4],[44,1,44,4],[7,11,9,11],[8,3,9,3],[8,4,9,4],[7,0,9,0],[7,1,9,1],[7,2,9,2],[8,8,9,8],[8,9,9,9],[7,10,9,10]]}
["ОТЧЕТ ЗА ИЗМЕНЕНИЯТА В СОБСТВЕНИЯ КАПИТАЛ"]
[{"$f":"CONCATENATE(\"(\",LOWER(reportConsolidation),\")\")","v":"(на индивидуална основа)"}]
[]
[{"$f":"CONCATENATE(\"на \",UPPER(pdeName))","v":"на \"МБАЛ - ТЪРГОВИЩЕ\" АД"}]
[{"$f":"CONCATENATE(\"ЕИК по БУЛСТАТ: \", pdeBulstat)","v":"ЕИК по БУЛСТАТ: 125501290"}]
[{"$f":"CONCATENATE(\"към \",TEXT(endDate,\"dd.mm.yyyy\"),\" г.\")","v":"към 31.03.2017 г."}]
[null,null,null,null,null,null,null,null,null,null,null,null,"( в хил.лева)"]
["ПОКАЗАТЕЛИ","Код на реда","Основен капитал","Резерви",null,null,null,null,"Натрупани печалби/загуби ",null,"Резерв \nот \nпреводи","Общо собствен капитал"]
[null,null,null,"премии от\n емисия (премиен резерв)","резерв от последващи \nоценки ","целеви резерви",null,null,"печалба","загуба",null,null,"Малцинствено \nучастие "]
[null,null,null,null,null,"общи","специали\nзирани","други"]
["а",null,1,2,3,4,5,6,7,8,9,10,11]
["Код на реда - б",null,"1-0410","1-0410","1-0422","1-0424","1-0425","1-0426","1-0452","1-0453","4-0426-1","1-0400","1-0400-1"]
["Салдо в началото на отчетния период ","4-01",{"$f":"'1-Баланс'!H18","v":3401},{"$f":"'1-Баланс'!H20","v":0},{"$f":"'1-Баланс'!H21","v":2558},{"$f":"'1-Баланс'!H23","v":165},{"$f":"'1-Баланс'!H24","v":0},98,{"$f":"'1-Баланс'!H29+'1-Баланс'!H32","v":0},{"$f":"'1-Баланс'!H30+'1-Баланс'!H33","v":-1684},null,{"$f":"SUM(C13:K13)","v":4538},{"$f":"'1-Баланс'!H40","v":0}]
["Промени в началните салда поради:","4-15",{"$f":"C15+C16","v":0},{"$f":"D15+D16","v":0},0,0,0,0,0,0,0,{"$f":"SUM(C14:K14)","v":0},0]
["Ефект от промени в счетоводната политика ","4-15-1",null,null,null,null,null,null,null,null,null,0]
["Фундаментални грешки ","4-15-2",null,null,null,null,null,null,null,null,null,0]
["Коригирано салдо в началото на отчетния период ","4-01-1",{"$f":"C13+C14","v":3401},{"$f":"D13+D14","v":0},2558,165,0,98,0,-1684,0,4538,0]
["Нетна печалба/загуба за периода  ","4-05",null,null,null,null,null,null,{"$f":"+'1-Баланс'!G32","v":0},{"$f":"+'1-Баланс'!G33","v":-12},null,-12]
["1. Разпределение на печалбата за:","4-06",{"$f":"C20+C21","v":0},{"$f":"D20+D21","v":0},{"$f":"E20+E21","v":0},{"$f":"F20+F21","v":0},0,0,0,{"$f":"J20+J21","v":0},0,0,{"$f":"M20+M21","v":0}]
[" дивиденти","4-07",null,null,null,null,null,null,null,null,null,{"$f":"SUM(C20:K20)","v":0}]
[" други ","4-07-1",null,null,null,null,null,null,null,null,null,0]
["2. Покриване на загуби","4-08",null,null,null,null,null,null,null,null,null,0]
["3. Последващи оценки на дълготрайни материални и нематериални активи, в т.ч.","4-09",{"$f":"C24-C25","v":0},{"$f":"D24-D25","v":0},0,0,0,0,0,0,0,0,0]
["увеличения    ","4-10",null,null,null,null,null,null,null,null,null,0]
["намаления","4-11",null,null,null,null,null,null,null,null,null,0]
["4. Последващи оценки на финансови активи и инструменти, в т.ч.","4-12",{"$f":"C27-C28","v":0},{"$f":"D27-D28","v":0},0,0,0,0,0,0,0,0,0]
["увеличения    ","4-13",null,null,null,null,null,null,null,null,null,0]
["намаления","4-14",null,null,null,null,null,null,null,null,null,0]
["5. Ефект от отсрочени данъци ","4-16-1",null,null,null,null,null,null,null,null,null,0]
["6. Други изменения","4-16",null,null,null,null,null,null,null,null,null,0]
["Салдо към края на отчетния период ","4-17",{"$f":"C19+C22+C23+C26+C30+C29+C17+C18","v":3401},{"$f":"D19+D22+D23+D26+D30+D29+D17+D18","v":0},2558,165,0,98,0,-1696,0,4526,0]
["7. Промени от преводи на годишни финансови отчети на предприятия в чужбина","4-18",null,null,null,null,null,null,null,null,null,0]
["8. Промени от преизчисляване на финансови отчети при свръхинфлация","4-19",null,null,null,null,null,null,null,null,null,0]
["Собствен капитал \nкъм края на отчетния период ","4-20",{"$f":"C31+C32+C33","v":3401},0,2558,165,0,98,0,-1696,0,4526,{"$f":"M31+M32+M33","v":0}]
[]
["Забележка:  На ред \"Салдо в началото на отчетния период\" се посочва салдото, което е в края на предходната година."]
[]
["Дата на съставяне:",{"$f":"pdeReportingDate","v":"2017-04-24"}]
[]
["Съставител:",{"$f":"authorName","v":"Катинка Иванова Ангелова"}]
[]
["Представляващ/и:"]
[null,"....................................................."]
[null,"/д-р Иван Василев Светулков/"]

{"sheet":"Справка 5","index":5,"n_rows":157,"n_cols":6,"rows_kept":157,"cut":false,"hidden":false,"merged":[[158,1,158,4],[159,1,159,4],[160,1,160,4],[161,1,161,4],[150,1,150,7],[152,1,152,7],[154,1,154,7],[155,1,155,4],[156,1,156,4],[157,1,157,4]]}
["СПРАВКА ЗА ИНВЕСТИЦИИТЕ В ДЪЩЕРНИ, СМЕСЕНИ, АСОЦИИРАНИ И ДРУГИ ПРЕДПРИЯТИЯ"]
[]
[{"$f":"CONCATENATE(\"на \",UPPER(pdeName))","v":"на \"МБАЛ - ТЪРГОВИЩЕ\" АД"}]
[{"$f":"CONCATENATE(\"ЕИК по БУЛСТАТ: \", pdeBulstat)","v":"ЕИК по БУЛСТАТ: 125501290"}]
[{"$f":"CONCATENATE(\"към \",TEXT(endDate,\"dd.mm.yyyy\"),\" г.\")","v":"към 31.03.2017 г."}]
[]
[null,null,null,null,null,"(в хил.лева)"]
["Наименование и седалище на предприятията, \nв които са инвестициите ","Код на реда ","Размер на инвестицията ","Процент на инвестицията в капитала на другото предприятие","Инвестиция в ценни книжа, приети за търговия на фондова борса","Инвестиция в ценни книжа, неприети за търговия на фондова борса"]
["а","б",1,2,3,4]
["А. В СТРАНАТА"]
["I. Инвестиции в дъщерни предприятия"]
[1,null,null,null,null,{"$f":"C12-E12","v":0}]
[2,null,null,null,null,{"$f":"C13-E13","v":0}]
[3,null,null,null,null,0]
[4,null,null,null,null,0]
[5,null,null,null,null,0]
[6,null,null,null,null,0]
[7,null,null,null,null,0]
[8,null,null,null,null,0]
[9,null,null,null,null,0]
[10,null,null,null,null,0]
[11,null,null,null,null,0]
[12,null,null,null,null,0]
[13,null,null,null,null,0]
[14,null,null,null,null,0]
[15,null,null,null,null,0]
["Обща сума I:","8-4001",{"$f":"SUM(C12:C26)","v":0},null,{"$f":"SUM(E12:E26)","v":0},{"$f":"SUM(F12:F26)","v":0}]
["II. Инвестиции в смесени предприятия"]
[1,null,null,null,null,{"$f":"C29-E29","v":0}]
[2,null,null,null,null,{"$f":"C30-E30","v":0}]
[3,null,null,null,null,0]
[4,null,null,null,null,0]
[5,null,null,null,null,0]
[6,null,null,null,null,0]
[7,null,null,null,null,0]
[8,null,null,null,null,0]
[9,null,null,null,null,0]
[10,null,null,null,null,0]
[11,null,null,null,null,0]
[12,null,null,null,null,0]
[13,null,null,null,null,0]
[14,null,null,null,null,0]
[15,null,null,null,null,0]
["Обща сума II:","8-4006",{"$f":"SUM(C29:C43)","v":0},null,{"$f":"SUM(E29:E43)","v":0},{"$f":"SUM(F29:F43)","v":0}]
["III. Инвестиции в асоциирани предприятия"]
["1. ДКЦ \"СВЕТИ ИВАН РИЛСКИ\" ТЪРГОВИЩЕ",null,2,null,null,{"$f":"C46-E46","v":2}]
[2,null,null,null,null,{"$f":"C47-E47","v":0}]
[3,null,null,null,null,0]
[4,null,null,null,null,0]
[5,null,null,null,null,0]
[6,null,null,null,null,0]
[7,null,null,null,null,0]
[8,null,null,null,null,0]
[9,null,null,null,null,0]
[10,null,null,null,null,0]
[11,null,null,null,null,0]
[12,null,null,null,null,0]
[13,null,null,null,null,0]
[14,null,null,null,null,0]
[15,null,null,null,null,0]
["Обща сума III:","84011",{"$f":"SUM(C46:C60)","v":2},null,{"$f":"SUM(E46:E60)","v":0},{"$f":"SUM(F46:F60)","v":2}]
["IV. Инвестиции в други предприятия"]
[1,null,null,null,null,{"$f":"C63-E63","v":0}]
[2,null,null,null,null,{"$f":"C64-E64","v":0}]
[3,null,null,null,null,0]
[4,null,null,null,null,0]
[5,null,null,null,null,0]
[6,null,null,null,null,0]
[7,null,null,null,null,0]
[8,null,null,null,null,0]
[9,null,null,null,null,0]
[10,null,null,null,null,0]
[11,null,null,null,null,0]
[12,null,null,null,null,0]
[13,null,null,null,null,0]
[14,null,null,null,null,0]
[15,null,null,null,null,0]
["Обща сума IV:","8-4016",{"$f":"SUM(C63:C77)","v":0},null,{"$f":"SUM(E63:E77)","v":0},{"$f":"SUM(F63:F77)","v":0}]
["Обща сума за страната (I+II+III+IV):","8-4025",{"$f":"C78+C61+C44+C27","v":2},null,{"$f":"E78+E61+E44+E27","v":0},{"$f":"F78+F61+F44+F27","v":2}]
["Б. В ЧУЖБИНА"]
["I. Инвестиции в дъщерни предприятия"]
[1,null,null,null,null,{"$f":"C82-E82","v":0}]
[2,null,null,null,null,{"$f":"C83-E83","v":0}]
[3,null,null,null,null,0]
[4,null,null,null,null,0]
[5,null,null,null,null,0]
[6,null,null,null,null,0]
[7,null,null,null,null,0]
[8,null,null,null,null,0]
[9,null,null,null,null,0]
[10,null,null,null,null,0]
[11,null,null,null,null,0]
[12,null,null,null,null,0]
[13,null,null,null,null,0]
[14,null,null,null,null,0]
[15,null,null,null,null,0]
["Обща сума I:","8-4030",{"$f":"SUM(C82:C96)","v":0},null,{"$f":"SUM(E82:E96)","v":0},{"$f":"SUM(F82:F96)","v":0}]
["II. Инвестиции в смесени предприятия"]
[1,null,null,null,null,{"$f":"C99-E99","v":0}]
[2,null,null,null,null,{"$f":"C100-E100","v":0}]
[3,null,null,null,null,0]
[4,null,null,null,null,0]
[5,null,null,null,null,0]
[6,null,null,null,null,0]
[7,null,null,null,null,0]
[8,null,null,null,null,0]
[9,null,null,null,null,0]
[10,null,null,null,null,0]
[11,null,null,null,null,0]
[12,null,null,null,null,0]
[13,null,null,null,null,0]
[14,null,null,null,null,0]
[15,null,null,null,null,0]
["Обща сума II:","8-4035",{"$f":"SUM(C99:C113)","v":0},null,{"$f":"SUM(E99:E113)","v":0},{"$f":"SUM(F99:F113)","v":0}]
["III. Инвестиции в асоциирани предприятия"]
[1,null,null,null,null,{"$f":"C116-E116","v":0}]
[2,null,null,null,null,{"$f":"C117-E117","v":0}]
[3,null,null,null,null,0]
[4,null,null,null,null,0]
[5,null,null,null,null,0]
[6,null,null,null,null,0]
[7,null,null,null,null,0]
[8,null,null,null,null,0]
[9,null,null,null,null,0]
[10,null,null,null,null,0]
[11,null,null,null,null,0]
[12,null,null,null,null,0]
[13,null,null,null,null,0]
[14,null,null,null,null,0]
[15,null,null,null,null,0]
["Обща сума III:","8-4040",{"$f":"SUM(C116:C130)","v":0},null,{"$f":"SUM(E116:E130)","v":0},{"$f":"SUM(F116:F130)","v":0}]
["IV. Инвестиции в други предприятия"]
[1,null,null,null,null,{"$f":"C133-E133","v":0}]
[2,null,null,null,null,{"$f":"C134-E134","v":0}]
[3,null,null,null,null,0]
[4,null,null,null,null,0]
[5,null,null,null,null,0]
[6,null,null,null,null,0]
[7,null,null,null,null,0]
[8,null,null,null,null,0]
[9,null,null,null,null,0]
[10,null,null,null,null,0]
[11,null,null,null,null,0]
[12,null,null,null,null,0]
[13,null,null,null,null,0]
[14,null,null,null,null,0]
[15,null,null,null,null,0]
["Обща сума IV:","8-4045",{"$f":"SUM(C133:C147)","v":0},null,{"$f":"SUM(E133:E147)","v":0},{"$f":"SUM(F133:F147)","v":0}]
["Обща сума за чужбина (I+II+III+IV):","8-4050",{"$f":"C148+C131+C114+C97","v":0},null,{"$f":"E148+E131+E114+E97","v":0},{"$f":"F148+F131+F114+F97","v":0}]
[]
["Дата на съставяне:",{"$f":"pdeReportingDate","v":"2017-04-24"}]
[]
["Съставител:",{"$f":"authorName","v":"Катинка Иванова Ангелова"}]
[]
["Представляващ/и:"]
[null,"........................."]
[null,"/д-р Иван Василев Светулков/"]

{"sheet":"Контроли","index":6,"n_rows":15,"n_cols":7,"rows_kept":15,"cut":false,"hidden":true,"merged":[]}
["ФОРМАЛЕН КОНТРОЛ "]
[{"$f":"CONCATENATE(\"на информацията, въведена в справките на \",UPPER(pdeName))","v":"на информацията, въведена в справките на \"МБАЛ - ТЪРГОВИЩЕ\" АД"}]
[{"$f":"CONCATENATE(\"за периода от \",TEXT(startDate,\"dd.mm.yyyy г.\"),\" до \",TEXT(endDate,\"dd.mm.yyyy г.\"))","v":"за периода от 01.01.2017 г. до 31.03.2017 г."}]
[]
["Справка 1","Показател 1","Стойност 1","РАЗЛИКА","Стойност 2","Показател 2","Справка 2"]
["[1-Баланс]","Общо активи",{"$f":"'1-Баланс'!C95","v":9639},{"$f":"C6-E6","v":0},{"$f":"'1-Баланс'!G95","v":9639},"Собствен капитал и пасиви","[1-Баланс]"]
["[1-Баланс]","Собствен капитал",{"$f":"'1-Баланс'!G37","v":4526},1125,{"$f":"'1-Баланс'!G18","v":3401},"Основен капитал","[1-Баланс]"]
["[1-Баланс]","Текуща печалба/загуба",{"$f":"ABS('1-Баланс'!G32)-ABS('1-Баланс'!G33)","v":-12},0,{"$f":"ABS('2-Отчет за доходите'!C44)-ABS('2-Отчет за доходите'!G44)","v":-12},"Нетна печалба/загуба за периода","[2-ОД]"]
["[1-Баланс]","Парични средства (предходен период)",{"$f":"'1-Баланс'!D92","v":1125},0,{"$f":"'3-Отчет за паричния поток'!C45","v":1125},"Парични средства в началото на периода","[3-ОПП]"]
["[1-Баланс]","Парични средства (текущ период)",{"$f":"'1-Баланс'!C92","v":1095},0,{"$f":"'3-Отчет за паричния поток'!C46","v":1095},"Парични средства в края на периода ","[3-ОПП]"]
["[1-Баланс]","Собствен капитал",{"$f":"'1-Баланс'!G37","v":4526},0,{"$f":"'4-Отчет за собствения капитал'!L34","v":4526},"Собствен капитал към края на отчетния период","[4-ОСК]"]
["[1-Баланс]","Нетекущи инвестиции в дъщерни предприятия",{"$f":"'1-Баланс'!C36","v":0},0,{"$f":"'Справка 5'!C27+'Справка 5'!C97","v":0},"Инвестиции в дъщерни предприятия","[Справка 5]"]
["[1-Баланс]","Нетекущи инвестиции в смесени предприятия",{"$f":"'1-Баланс'!C37","v":0},0,{"$f":"'Справка 5'!C44+'Справка 5'!C114","v":0},"Инвестиции в смесени предприятия","[Справка 5]"]
["[1-Баланс]","Нетекущи инвестиции в асоциирани предприятия",{"$f":"'1-Баланс'!C38","v":2},0,{"$f":"'Справка 5'!C61+'Справка 5'!C131","v":2},"Инвестиции в асоциирани предприятия","[Справка 5]"]
["[1-Баланс]","Нетекущи инвестиции в други предприятия",{"$f":"'1-Баланс'!C39","v":0},0,{"$f":"'Справка 5'!C148+'Справка 5'!C78","v":0},"Инвестиции в други предприятия","[Справка 5]"]

{"sheet":"Показатели","index":7,"n_rows":24,"n_cols":4,"rows_kept":24,"cut":false,"hidden":true,"merged":[]}
["#","Показател","Коефициент","Стойност"]
["Показатели за рентабилност"]
[1,"Рентабилност на приходите от продажби","Финансов резултат / \nНетни приходи от продажби",{"$f":"(ABS('1-Баланс'!G32)-ABS('1-Баланс'!G33))/'2-Отчет за доходите'!G16","v":-4.0000000000000001E-3}]
[2,"Рентабилност на собствения капитал (ROE)","Финансов резултат / \nСобствен капитал",{"$f":"(ABS('1-Баланс'!G32)-ABS('1-Баланс'!G33))/'1-Баланс'!G37","v":-2.6513477684489617E-3}]
[3,"Рентабилност на пасивите","Финансов резултат / \nПасиви",{"$f":"(ABS('1-Баланс'!G32)-ABS('1-Баланс'!G33))/('1-Баланс'!G56+'1-Баланс'!G79)","v":-2.3469587326422842E-3}]
[4,"Рентабилност на активите (ROA)","Финансов резултат / \nАктиви",{"$f":"(ABS('1-Баланс'!G32)-ABS('1-Баланс'!G33))/('1-Баланс'!C95)","v":-1.2449424214130097E-3}]
["Показатели за ефективност"]
[5,"Ефективност на разходите","Приходи /\nРазходи",{"$f":"'2-Отчет за доходите'!G36/'2-Отчет за доходите'!C36","v":0.99653579676674364}]
["Показатели за ликвидност"]
[6,"Обща ликвидност","Текущи активи / \nТекущи пасиви",{"$f":"'1-Баланс'!C94/'1-Баланс'!G79","v":0.55466458048112655}]
[7,"Бърза ликвидност","(Краткосрочни вземания + \nКраткосрочни инвестиции + \nПарични средства) /\n Текущи пасиви",{"$f":"('1-Баланс'!C76+'1-Баланс'!C85+'1-Баланс'!C92)/'1-Баланс'!G79","v":0.52356737727361624}]
[8,"Незабавна ликвидност","(Краткосрочни инвестиции + \nПарични средства) /\n Текущи пасиви",{"$f":"('1-Баланс'!C85+'1-Баланс'!C92)/'1-Баланс'!G79","v":0.21415998435360845}]
[9,"Абсолютна ликвидност","Парични средства /\n Текущи пасиви",{"$f":"'1-Баланс'!C92/'1-Баланс'!G79","v":0.21415998435360845}]
["Обръщаемост на активите"]
[10,"Обръщаемост на материалните активи","Нетни приходи от продажби /\nМатериални активи",{"$f":"'2-Отчет за доходите'!G16/('1-Баланс'!C20+'1-Баланс'!C21+'1-Баланс'!C22+'1-Баланс'!C28+'1-Баланс'!C65)","v":0.44411547002220575}]
[11,"Обръщаемост на активите","Нетни приходи от продажби /\nОбщи активи",{"$f":"'2-Отчет за доходите'!G16/('1-Баланс'!C95)","v":0.3112356053532524}]
["Финансов ливъридж (Задлъжнялост)"]
[12,"Капиталова структура","Дългосрочен дълг / \nСума на дългосрочното финансиране",{"$f":"'1-Баланс'!G56/('1-Баланс'!G37+'1-Баланс'!G56)","v":0}]
[13,"Дълг / Собствен капитал","Текущи пасиви + Нетекущи пасиви /\nСобствен капитал",{"$f":"D4/D5","v":1.1296950950066285}]
[14,"Дълг / Активи","Текущи пасиви + Нетекущи пасиви /\nАктиви",{"$f":"D6/D5","v":0.53044921672372658}]
[15,"Оперативна печалба (EBIT)","Печалба преди данъци + Р-ди за лихви",{"$f":"'2-Отчет за доходите'!C37+'2-Отчет за доходите'!C25","v":0}]
[16,"Възвръщаемост на собствения капитал чрез оперативната печалба (ROE using EBIT)","Оперативна печалба /\nСобствен капитал",{"$f":"D21/'1-Баланс'!G37","v":0}]
[17,"EBITDA margin","Оперативна печалба + Амортизации /\nПриходи от дейността",{"$f":"(D21+'2-Отчет за доходите'!C14)/'2-Отчет за доходите'!G31","v":3.1865585168018538E-2}]
[18,"Дълг / EBITDA","Текущи пасиви + Нетекущи пасиви /\nEBITDA",{"$f":"('1-Баланс'!G56+'1-Баланс'!G79)/(D21+'2-Отчет за доходите'!C14)","v":46.481818181818184}]

{"sheet":"Danni","index":8,"n_rows":503,"n_cols":14,"rows_kept":503,"cut":false,"hidden":true,"merged":[]}
["Наименование","ЕИК","Дата","Код на ред","Код на колона","Индикатор","Подиндикатор","Сума",null,null,null,null,null,"На консолидирана основа"]
[null,null,null,null,null,"Баланс"]
[{"$f":"pdeName","v":"\"МБАЛ - ТЪРГОВИЩЕ\" АД"},{"$f":"pdeBulstat","v":"125501290"},{"$f":"endDate","v":"2017-03-31"},"1-0011",1,"1. Земи (терени )","Активи",{"$f":" '1-Баланс'!C12","v":846}]
["\"МБАЛ - ТЪРГОВИЩЕ\" АД","125501290","2017-03-31","1-0012",1,"2. Сгради и конструкции","Активи",{"$f":" '1-Баланс'!C13","v":3976}]
["\"МБАЛ - ТЪРГОВИЩЕ\" АД","125501290","2017-03-31","1-0013",1,"3. Машини и оборудване ","Активи",{"$f":" '1-Баланс'!C14","v":1329}]
["\"МБАЛ - ТЪРГОВИЩЕ\" АД","125501290","2017-03-31","1-0014",1,"4. Съоръжения","Активи",{"$f":" '1-Баланс'!C15","v":310}]
["\"МБАЛ - ТЪРГОВИЩЕ\" АД","125501290","2017-03-31","1-0015",1,"5. Транспортни средства ","Активи",{"$f":" '1-Баланс'!C16","v":37}]
["\"МБАЛ - ТЪРГОВИЩЕ\" АД","125501290","2017-03-31","1-0017-1",1,"6. Стопански инвентар","Активи",{"$f":" '1-Баланс'!C17","v":97}]
["\"МБАЛ - ТЪРГОВИЩЕ\" АД","125501290","2017-03-31","1-0018",1,"7. Разходи за придобиване и ликвидация на дълготрайни материални активи","Активи",{"$f":" '1-Баланс'!C18","v":0}]
["\"МБАЛ - ТЪРГОВИЩЕ\" АД","125501290","2017-03-31","1-0017",1,"8. Други ","Активи",{"$f":" '1-Баланс'!C19","v":0}]
["\"МБАЛ - ТЪРГОВИЩЕ\" АД","125501290","2017-03-31","1-0010",1,"I. Имоти, машини, съоръжения и оборудване","Активи",{"$f":" '1-Баланс'!C20","v":6595}]
["\"МБАЛ - ТЪРГОВИЩЕ\" АД","125501290","2017-03-31","1-0041",1,"II. Инвестиционни имоти ","Активи",{"$f":" '1-Баланс'!C21","v":0}]
["\"МБАЛ - ТЪРГОВИЩЕ\" АД","125501290","2017-03-31","1-0016",1,"III. Биологични активи ","Активи",{"$f":" '1-Баланс'!C22","v":0}]
["\"МБАЛ - ТЪРГОВИЩЕ\" АД","125501290","2017-03-31","1-0021",1,"1. Права върху собственост","Активи",{"$f":" '1-Баланс'!C24","v":0}]
["\"МБАЛ - ТЪРГОВИЩЕ\" АД","125501290","2017-03-31","1-0022",1,"2. Програмни продукти","Активи",{"$f":" '1-Баланс'!C25","v":1}]
["\"МБАЛ - ТЪРГОВИЩЕ\" АД","125501290","2017-03-31","1-0023",1,"3. Продукти от развойна дейност","Активи",{"$f":" '1-Баланс'!C26","v":0}]
["\"МБАЛ - ТЪРГОВИЩЕ\" АД","125501290","2017-03-31","1-0024",1,"4. Други ","Активи",{"$f":" '1-Баланс'!C27","v":0}]
["\"МБАЛ - ТЪРГОВИЩЕ\" АД","125501290","2017-03-31","1-0020",1,"IV. Нематериални активи","Активи",{"$f":" '1-Баланс'!C28","v":1}]
["\"МБАЛ - ТЪРГОВИЩЕ\" АД","125501290","2017-03-31","1-0051",1,"1. Положителна репутация","Активи",{"$f":" '1-Баланс'!C31","v":0}]
["\"МБАЛ - ТЪРГОВИЩЕ\" АД","125501290","2017-03-31","1-0052",1,"2. Отрицателна репутация","Активи",{"$f":" '1-Баланс'!C32","v":0}]
["\"МБАЛ - ТЪРГОВИЩЕ\" АД","125501290","2017-03-31","1-0050",1,"V. Търговска репутация","Активи",{"$f":" '1-Баланс'!C33","v":0}]
["\"МБАЛ - ТЪРГОВИЩЕ\" АД","125501290","2017-03-31","1-0031",1,"1. Инвестиции в: ","Активи",{"$f":" '1-Баланс'!C35","v":2}]
["\"МБАЛ - ТЪРГОВИЩЕ\" АД","125501290","2017-03-31","1-0032",1,"дъщерни предприятия","Активи",{"$f":" '1-Баланс'!C36","v":0}]
["\"МБАЛ - ТЪРГОВИЩЕ\" АД","125501290","2017-03-31","1-0033",1,"смесени предприятия","Активи",{"$f":" '1-Баланс'!C37","v":0}]
["\"МБАЛ - ТЪРГОВИЩЕ\" АД","125501290","2017-03-31","1-0034",1,"асоциирани предприятия","Активи",{"$f":" '1-Баланс'!C38","v":2}]
["\"МБАЛ - ТЪРГОВИЩЕ\" АД","125501290","2017-03-31","1-0035",1,"други предприятия","Активи",{"$f":" '1-Баланс'!C39","v":0}]
["\"МБАЛ - ТЪРГОВИЩЕ\" АД","125501290","2017-03-31","1-0042",1,"2. Държани до настъпване на падеж ","Активи",{"$f":" '1-Баланс'!C40","v":0}]
["\"МБАЛ - ТЪРГОВИЩЕ\" АД","125501290","2017-03-31","1-0042-1",1,"държавни ценни книжа ","Активи",{"$f":" '1-Баланс'!C41","v":0}]
["\"МБАЛ - ТЪРГОВИЩЕ\" АД","125501290","2017-03-31","1-0042-2",1,"облигации, в т.ч.: ","Активи",{"$f":" '1-Баланс'!C42","v":0}]
["\"МБАЛ - ТЪРГОВИЩЕ\" АД","125501290","2017-03-31","1-0042-3",1,"общински облигации ","Активи",{"$f":" '1-Баланс'!C43","v":0}]
["\"МБАЛ - ТЪРГОВИЩЕ\" АД","125501290","2017-03-31","1-0042-4",1,"други инвестиции, държани до настъпване на падеж","Активи",{"$f":" '1-Баланс'!C44","v":0}]
["\"МБАЛ - ТЪРГОВИЩЕ\" АД","125501290","2017-03-31","1-0042-5",1,"3. Други ","Активи",{"$f":" '1-Баланс'!C45","v":0}]
["\"МБАЛ - ТЪРГОВИЩЕ\" АД","125501290","2017-03-31","1-0040",1,"Общо за група VI:","Активи",{"$f":" '1-Баланс'!C46","v":2}]
["\"МБАЛ - ТЪРГОВИЩЕ\" АД","125501290","2017-03-31","1-0044",1,"1. Вземания от свързани предприятия","Активи",{"$f":" '1-Баланс'!C48","v":0}]
[{"$f":"pdeName","v":"\"МБАЛ - ТЪРГОВИЩЕ\" АД"},{"$f":"pdeBulstat","v":"125501290"},{"$f":"endDate","v":"2017-03-31"},"1-0045",1,"2. Вземания по търговски заеми","Активи",{"$f":" '1-Баланс'!C49","v":0}]
["\"МБАЛ - ТЪРГОВИЩЕ\" АД","125501290","2017-03-31","1-0046-1",1,"3. Вземания по финансов лизинг ","Активи",{"$f":" '1-Баланс'!C50","v":0}]
["\"МБАЛ - ТЪРГОВИЩЕ\" АД","125501290","2017-03-31","1-0046",1,"4. Други ","Активи",{"$f":" '1-Баланс'!C51","v":0}]
["\"МБАЛ - ТЪРГОВИЩЕ\" АД","125501290","2017-03-31","1-0040-1",1,"VI. Финансови активи","Активи",{"$f":" '1-Баланс'!C52","v":0}]
["\"МБАЛ - ТЪРГОВИЩЕ\" АД","125501290","2017-03-31","1-0060",1,"VIII. Разходи за бъдещи периоди ","Активи",{"$f":" '1-Баланс'!C54","v":0}]
["\"МБАЛ - ТЪРГОВИЩЕ\" АД","125501290","2017-03-31","1-0060-1",1,"IX. Активи по отсрочени данъци  ","Активи",{"$f":" '1-Баланс'!C55","v":205}]
["\"МБАЛ - ТЪРГОВИЩЕ\" АД","125501290","2017-03-31","1-0100",1,"А. НЕТЕКУЩИ АКТИВИ ","Активи",{"$f":" '1-Баланс'!C56","v":6803}]
["\"МБАЛ - ТЪРГОВИЩЕ\" АД","125501290","2017-03-31","1-0071",1,"1. Материали","Активи",{"$f":" '1-Баланс'!C59","v":159}]
["\"МБАЛ - ТЪРГОВИЩЕ\" АД","125501290","2017-03-31","1-0072",1,"2. Продукция","Активи",{"$f":" '1-Баланс'!C60","v":0}]
["\"МБАЛ - ТЪРГОВИЩЕ\" АД","125501290","2017-03-31","1-0073",1,"3. Стоки","Активи",{"$f":" '1-Баланс'!C61","v":0}]
["\"МБАЛ - ТЪРГОВИЩЕ\" АД","125501290","2017-03-31","1-0076",1,"4. Незавършено производство","Активи",{"$f":" '1-Баланс'!C62","v":0}]
["\"МБАЛ - ТЪРГОВИЩЕ\" АД","125501290","2017-03-31","1-0074",1,"5. Биологични активи ","Активи",{"$f":" '1-Баланс'!C63","v":0}]
["\"МБАЛ - ТЪРГОВИЩЕ\" АД","125501290","2017-03-31","1-0077",1,"6. Други","Активи",{"$f":" '1-Баланс'!C64","v":0}]
["\"МБАЛ - ТЪРГОВИЩЕ\" АД","125501290","2017-03-31","1-0070",1,"I. Материални запаси","Активи",{"$f":" '1-Баланс'!C65","v":159}]
["\"МБАЛ - ТЪРГОВИЩЕ\" АД","125501290","2017-03-31","1-0081",1,"1. Вземания от свързани предприятия ","Активи",{"$f":" '1-Баланс'!C68","v":0}]
["\"МБАЛ - ТЪРГОВИЩЕ\" АД","125501290","2017-03-31","1-0082",1,"2. Вземания от клиенти и доставчици","Активи",{"$f":" '1-Баланс'!C69","v":1577}]
["\"МБАЛ - ТЪРГОВИЩЕ\" АД","125501290","2017-03-31","1-0086-1",1,"3. Предоставени аванси ","Активи",{"$f":" '1-Баланс'!C70","v":0}]
["\"МБАЛ - ТЪРГОВИЩЕ\" АД","125501290","2017-03-31","1-0083",1,"4. Вземания по предоставени търговски заеми","Активи",{"$f":" '1-Баланс'!C71","v":0}]
["\"МБАЛ - ТЪРГОВИЩЕ\" АД","125501290","2017-03-31","1-0084",1,"5. Съдебни и присъдени вземания","Активи",{"$f":" '1-Баланс'!C72","v":0}]
["\"МБАЛ - ТЪРГОВИЩЕ\" АД","125501290","2017-03-31","1-0085",1,"6. Данъци за възстановяване","Активи",{"$f":" '1-Баланс'!C73","v":0}]
["\"МБАЛ - ТЪРГОВИЩЕ\" АД","125501290","2017-03-31","1-0086-2",1,"7. Вземания от персонала ","Активи",{"$f":" '1-Баланс'!C74","v":0}]
["\"МБАЛ - ТЪРГОВИЩЕ\" АД","125501290","2017-03-31","1-0086",1,"8. Други","Активи",{"$f":" '1-Баланс'!C75","v":5}]
["\"МБАЛ - ТЪРГОВИЩЕ\" АД","125501290","2017-03-31","1-0080",1,"II. Търговски и  други вземания","Активи",{"$f":" '1-Баланс'!C76","v":1582}]
["\"МБАЛ - ТЪРГОВИЩЕ\" АД","125501290","2017-03-31","1-0093",1,"1. Финансови активи, държани за търгуване в т. ч.","Активи",{"$f":" '1-Баланс'!C79","v":0}]
["\"МБАЛ - ТЪРГОВИЩЕ\" АД","125501290","2017-03-31","1-0093-1",1,"дългови ценни книжа ","Активи",{"$f":" '1-Баланс'!C80","v":0}]
["\"МБАЛ - ТЪРГОВИЩЕ\" АД","125501290","2017-03-31","1-0093-2",1,"дeривативи","Активи",{"$f":" '1-Баланс'!C81","v":0}]
["\"МБАЛ - ТЪРГОВИЩЕ\" АД","125501290","2017-03-31","1-0093-3",1,"други ","Активи",{"$f":" '1-Баланс'!C82","v":0}]
["\"МБАЛ - ТЪРГОВИЩЕ\" АД","125501290","2017-03-31","1-0093-4",1,"2. Финансови активи, обявени за продажба  ","Активи",{"$f":" '1-Баланс'!C83","v":0}]
["\"МБАЛ - ТЪРГОВИЩЕ\" АД","125501290","2017-03-31","1-0095",1,"3. Други ","Активи",{"$f":" '1-Баланс'!C84","v":0}]
["\"МБАЛ - ТЪРГОВИЩЕ\" АД","125501290","2017-03-31","1-0090",1,"III.Финансови активи ","Активи",{"$f":" '1-Баланс'!C85","v":0}]
["\"МБАЛ - ТЪРГОВИЩЕ\" АД","125501290","2017-03-31","1-0151",1,"1. Парични средства в брой","Активи",{"$f":" '1-Баланс'!C88","v":8}]
["\"МБАЛ - ТЪРГОВИЩЕ\" АД","125501290","2017-03-31","1-0153",1,"2. Парични средства в безсрочни депозити","Активи",{"$f":" '1-Баланс'!C89","v":1087}]
[{"$f":"pdeName","v":"\"МБАЛ - ТЪРГОВИЩЕ\" АД"},{"$f":"pdeBulstat","v":"125501290"},{"$f":"endDate","v":"2017-03-31"},"1-0155",1,"3. Блокирани парични средства ","Активи",{"$f":" '1-Баланс'!C90","v":0}]
["\"МБАЛ - ТЪРГОВИЩЕ\" АД","125501290","2017-03-31","1-0157",1,"4. Парични еквиваленти","Активи",{"$f":" '1-Баланс'!C91","v":0}]
["\"МБАЛ - ТЪРГОВИЩЕ\" АД","125501290","2017-03-31","1-0150",1,"IV. Парични средства и парични еквиваленти","Активи",{"$f":" '1-Баланс'!C92","v":1095}]
["\"МБАЛ - ТЪРГОВИЩЕ\" АД","125501290","2017-03-31","1-0160",1,"V. Разходи за бъдещи периоди ","Активи",{"$f":" '1-Баланс'!C93","v":0}]
["\"МБАЛ - ТЪРГОВИЩЕ\" АД","125501290","2017-03-31","1-0200",1,"Б. ТЕКУЩИ АКТИВИ ","Активи",{"$f":" '1-Баланс'!C94","v":2836}]
["\"МБАЛ - ТЪРГОВИЩЕ\" АД","125501290","2017-03-31","1-0300",1,"ОБЩО АКТИВИ (А + Б):","Активи",{"$f":" '1-Баланс'!C95","v":9639}]
["\"МБАЛ - ТЪРГОВИЩЕ\" АД","125501290","2017-03-31","1-0411",1,"Записан и внесен капитал т.ч.:  ","Пасиви",{"$f":"'1-Баланс'!G12","v":3401}]
["\"МБАЛ - ТЪРГОВИЩЕ\" АД","125501290","2017-03-31","1-0411-1",1,"обикновени акции","Пасиви",{"$f":"'1-Баланс'!G13","v":0}]
["\"МБАЛ - ТЪРГОВИЩЕ\" АД","125501290","2017-03-31","1-0411-2",1,"привилегировани акции","Пасиви",{"$f":"'1-Баланс'!G14","v":0}]
["\"МБАЛ - ТЪРГОВИЩЕ\" АД","125501290","2017-03-31","1-0417",1,"Изкупени собствени обикновени акции","Пасиви",{"$f":"'1-Баланс'!G15","v":0}]
["\"МБАЛ - ТЪРГОВИЩЕ\" АД","125501290","2017-03-31","1-0417-1",1,"Изкупени собствени привилегировани акции","Пасиви",{"$f":"'1-Баланс'!G16","v":0}]
["\"МБАЛ - ТЪРГОВИЩЕ\" АД","125501290","2017-03-31","1-0416",1,"Невнесен капитал","Пасиви",{"$f":"'1-Баланс'!G17","v":0}]
["\"МБАЛ - ТЪРГОВИЩЕ\" АД","125501290","2017-03-31","1-0410",1,"I. Основен капитал ","Пасиви",{"$f":"'1-Баланс'!G18","v":3401}]
["\"МБАЛ - ТЪРГОВИЩЕ\" АД","125501290","2017-03-31","1-0421",1,"1. Премийни резерви  при емитиране на ценни книжа ","Пасиви",{"$f":"'1-Баланс'!G20","v":0}]
["\"МБАЛ - ТЪРГОВИЩЕ\" АД","125501290","2017-03-31","1-0422",1,"2. Резерв от последващи оценки на активите и пасивите","Пасиви",{"$f":"'1-Баланс'!G21","v":2558}]
["\"МБАЛ - ТЪРГОВИЩЕ\" АД","125501290","2017-03-31","1-0423",1,"3. Целеви резерви, в т.ч.:","Пасиви",{"$f":"'1-Баланс'!G22","v":263}]
["\"МБАЛ - ТЪРГОВИЩЕ\" АД","125501290","2017-03-31","1-0424",1,"общи резерви","Пасиви",{"$f":"'1-Баланс'!G23","v":165}]
["\"МБАЛ - ТЪРГОВИЩЕ\" АД","125501290","2017-03-31","1-0425",1,"специализирани резерви","Пасиви",{"$f":"'1-Баланс'!G24","v":0}]
["\"МБАЛ - ТЪРГОВИЩЕ\" АД","125501290","2017-03-31","1-0426",1,"други резерви","Пасиви",{"$f":"'1-Баланс'!G25","v":98}]
["\"МБАЛ - ТЪРГОВИЩЕ\" АД","125501290","2017-03-31","1-0420",1,"II. Резерви","Пасиви",{"$f":"'1-Баланс'!G26","v":2821}]
["\"МБАЛ - ТЪРГОВИЩЕ\" АД","125501290","2017-03-31","1-0451",1,"1. Натрупана печалба  (загуба) в т.ч.:","Пасиви",{"$f":"'1-Баланс'!G28","v":-1684}]
["\"МБАЛ - ТЪРГОВИЩЕ\" АД","125501290","2017-03-31","1-0452",1,"неразпределена печалба","Пасиви",{"$f":"'1-Баланс'!G29","v":0}]
["\"МБАЛ - ТЪРГОВИЩЕ\" АД","125501290","2017-03-31","1-0453",1,"непокрита загуба","Пасиви",{"$f":"'1-Баланс'!G30","v":-1684}]
["\"МБАЛ - ТЪРГОВИЩЕ\" АД","125501290","2017-03-31","1-0451-1",1,"еднократен ефект от промени в счетоводната политика ","Пасиви",{"$f":"'1-Баланс'!G31","v":0}]
["\"МБАЛ - ТЪРГОВИЩЕ\" АД","125501290","2017-03-31","1-0454",1,"2. Текуща печалба","Пасиви",{"$f":"'1-Баланс'!G32","v":0}]
["\"МБАЛ - ТЪРГОВИЩЕ\" АД","125501290","2017-03-31","1-0455",1,"3. Текуща загуба","Пасиви",{"$f":"'1-Баланс'!G33","v":-12}]
["\"МБАЛ - ТЪРГОВИЩЕ\" АД","125501290","2017-03-31","1-0450",1,"III. Финансов резултат","Пасиви",{"$f":"'1-Баланс'!G34","v":-1696}]
["\"МБАЛ - ТЪРГОВИЩЕ\" АД","125501290","2017-03-31","1-0400",1,"А. СОБСТВЕН КАПИТАЛ","Пасиви",{"$f":"'1-Баланс'!G37","v":4526}]
["\"МБАЛ - ТЪРГОВИЩЕ\" АД","125501290","2017-03-31","1-0400-1",1,"Б. МАЛЦИНСТВЕНО УЧАСТИЕ","Пасиви",{"$f":"'1-Баланс'!G40","v":0}]
["\"МБАЛ - ТЪРГОВИЩЕ\" АД","125501290","2017-03-31","1-0511",1,"1. Задължения към свързани предприятия","Пасиви",{"$f":"'1-Баланс'!G44","v":0}]
["\"МБАЛ - ТЪРГОВИЩЕ\" АД","125501290","2017-03-31","1-0512",1,"2.Задължения по получени заеми от банки и небанкови финансови институции","Пасиви",{"$f":"'1-Баланс'!G45","v":0}]
["\"МБАЛ - ТЪРГОВИЩЕ\" АД","125501290","2017-03-31","1-0512-1",1,"3. Задължения по ЗУНК","Пасиви",{"$f":"'1-Баланс'!G46","v":0}]
[{"$f":"pdeName","v":"\"МБАЛ - ТЪРГОВИЩЕ\" АД"},{"$f":"pdeBulstat","v":"125501290"},{"$f":"endDate","v":"2017-03-31"},"1-0514",1,"4. Задължения по получени търговски заеми","Пасиви",{"$f":"'1-Баланс'!G47","v":0}]
["\"МБАЛ - ТЪРГОВИЩЕ\" АД","125501290","2017-03-31","1-0515",1,"5. Задължения по облигационни заеми","Пасиви",{"$f":"'1-Баланс'!G48","v":0}]
["\"МБАЛ - ТЪРГОВИЩЕ\" АД","125501290","2017-03-31","1-0517",1,"6. Други ","Пасиви",{"$f":"'1-Баланс'!G49","v":0}]
["\"МБАЛ - ТЪРГОВИЩЕ\" АД","125501290","2017-03-31","1-0510",1,"I. Търговски и други задължения","Пасиви",{"$f":"'1-Баланс'!G50","v":0}]
["\"МБАЛ - ТЪРГОВИЩЕ\" АД","125501290","2017-03-31","1-0510-1",1,"II. Други нетекущи пасиви ","Пасиви",{"$f":"'1-Баланс'!G52","v":0}]
["\"МБАЛ - ТЪРГОВИЩЕ\" АД","125501290","2017-03-31","1-0520",1,"III. Приходи за бъдещи периоди ","Пасиви",{"$f":"'1-Баланс'!G53","v":0}]
["\"МБАЛ - ТЪРГОВИЩЕ\" АД","125501290","2017-03-31","1-0516",1,"IV. Пасиви по отсрочени данъци ","Пасиви",{"$f":"'1-Баланс'!G54","v":0}]
["\"МБАЛ - ТЪРГОВИЩЕ\" АД","125501290","2017-03-31","1-0520-1",1,"V.Финансирания ","Пасиви",{"$f":"'1-Баланс'!G55","v":0}]
["\"МБАЛ - ТЪРГОВИЩЕ\" АД","125501290","2017-03-31","1-0500",1,"В. НЕТЕКУЩИ ПАСИВИ ","Пасиви",{"$f":"'1-Баланс'!G56","v":0}]
["\"МБАЛ - ТЪРГОВИЩЕ\" АД","125501290","2017-03-31","1-0612",1,"1. Задължения по получени заеми към банки и  небанкови финансови институции","Пасиви",{"$f":"'1-Баланс'!G59","v":0}]
["\"МБАЛ - ТЪРГОВИЩЕ\" АД","125501290","2017-03-31","1-0510-2",1,"2. Текуща част от нетекущите задължения ","Пасиви",{"$f":"'1-Баланс'!G60","v":0}]
["\"МБАЛ - ТЪРГОВИЩЕ\" АД","125501290","2017-03-31","1-0630",1,"3. Текущи задължения, в т.ч.:  ","Пасиви",{"$f":"'1-Баланс'!G61","v":3484}]
["\"МБАЛ - ТЪРГОВИЩЕ\" АД","125501290","2017-03-31","1-0611",1,"задължения към свързани предприятия","Пасиви",{"$f":"'1-Баланс'!G62","v":0}]
["\"МБАЛ - ТЪРГОВИЩЕ\" АД","125501290","2017-03-31","1-0614",1,"задължения по получени търговски заеми ","Пасиви",{"$f":"'1-Баланс'!G63","v":0}]
["\"МБАЛ - ТЪРГОВИЩЕ\" АД","125501290","2017-03-31","1-0613",1,"задължения към доставчици и клиенти ","Пасиви",{"$f":"'1-Баланс'!G64","v":2570}]
["\"МБАЛ - ТЪРГОВИЩЕ\" АД","125501290","2017-03-31","1-0613-1",1,"получени аванси","Пасиви",{"$f":"'1-Баланс'!G65","v":0}]
["\"МБАЛ - ТЪРГОВИЩЕ\" АД","125501290","2017-03-31","1-0615",1,"задължения към персонала","Пасиви",{"$f":"'1-Баланс'!G66","v":619}]
["\"МБАЛ - ТЪРГОВИЩЕ\" АД","125501290","2017-03-31","1-0616",1,"задължения към осигурителни предприятия","Пасиви",{"$f":"'1-Баланс'!G67","v":245}]
["\"МБАЛ - ТЪРГОВИЩЕ\" АД","125501290","2017-03-31","1-0617",1,"данъчни задължения","Пасиви",{"$f":"'1-Баланс'!G68","v":50}]
["\"МБАЛ - ТЪРГОВИЩЕ\" АД","125501290","2017-03-31","1-0618",1,"4. Други ","Пасиви",{"$f":"'1-Баланс'!G69","v":106}]
["\"МБАЛ - ТЪРГОВИЩЕ\" АД","125501290","2017-03-31","1-0619",1,"5. Провизии ","Пасиви",{"$f":"'1-Баланс'!G70","v":0}]
["\"МБАЛ - ТЪРГОВИЩЕ\" АД","125501290","2017-03-31","1-0610",1,"I. Търговски и други задължения","Пасиви",{"$f":"'1-Баланс'!G71","v":3590}]
["\"МБАЛ - ТЪРГОВИЩЕ\" АД","125501290","2017-03-31","1-0610-1",1,"II. Други текущи пасиви ","Пасиви",{"$f":"'1-Баланс'!G73","v":0}]
["\"МБАЛ - ТЪРГОВИЩЕ\" АД","125501290","2017-03-31","1-0700",1,"III. Приходи за бъдещи периоди ","Пасиви",{"$f":"'1-Баланс'!G75","v":1000}]
["\"МБАЛ - ТЪРГОВИЩЕ\" АД","125501290","2017-03-31","1-0700-1",1,"IV. Финансирания ","Пасиви",{"$f":"'1-Баланс'!G77","v":523}]
["\"МБАЛ - ТЪРГОВИЩЕ\" АД","125501290","2017-03-31","1-0750",1,"Г. ТЕКУЩИ ПАСИВИ","Пасиви",{"$f":"'1-Баланс'!G79","v":5113}]
["\"МБАЛ - ТЪРГОВИЩЕ\" АД","125501290","2017-03-31","1-0800",1,"СОБСТВЕН КАТИТАЛ, МАЛЦИНСТВЕНО УЧАСТИЕ И ПАСИВИ (А+Б+В+Г):","Пасиви",{"$f":"'1-Баланс'!G95","v":9639}]
[null,null,null,null,null,"ОПР"]
[{"$f":"pdeName","v":"\"МБАЛ - ТЪРГОВИЩЕ\" АД"},{"$f":"pdeBulstat","v":"125501290"},{"$f":"endDate","v":"2017-03-31"},"2-1120",1,"1. Разходи за материали","Разходи",{"$f":"'2-Отчет за доходите'!C12","v":1227}]
["\"МБАЛ - ТЪРГОВИЩЕ\" АД","125501290","2017-03-31","2-1130",1,"2. Разходи за външни услуги ","Разходи",{"$f":"'2-Отчет за доходите'!C13","v":167}]
["\"МБАЛ - ТЪРГОВИЩЕ\" АД","125501290","2017-03-31","2-1160",1,"3. Разходи за амортизации","Разходи",{"$f":"'2-Отчет за доходите'!C14","v":110}]
["\"МБАЛ - ТЪРГОВИЩЕ\" АД","125501290","2017-03-31","2-1140",1,"4. Разходи за възнаграждения","Разходи",{"$f":"'2-Отчет за доходите'!C15","v":1638}]
["\"МБАЛ - ТЪРГОВИЩЕ\" АД","125501290","2017-03-31","2-1150",1,"5. Разходи за осигуровки","Разходи",{"$f":"'2-Отчет за доходите'!C16","v":307}]
["\"МБАЛ - ТЪРГОВИЩЕ\" АД","125501290","2017-03-31","2-1010",1,"6. Балансова стойност на продадени активи (без продукция)","Разходи",{"$f":"'2-Отчет за доходите'!C17","v":0}]
["\"МБАЛ - ТЪРГОВИЩЕ\" АД","125501290","2017-03-31","2-1030",1,"7. Изменение на запасите от продукция и незавършено производство","Разходи",{"$f":"'2-Отчет за доходите'!C18","v":0}]
["\"МБАЛ - ТЪРГОВИЩЕ\" АД","125501290","2017-03-31","2-1170",1,"8. Други, в т.ч.: ","Разходи",{"$f":"'2-Отчет за доходите'!C19","v":14}]
["\"МБАЛ - ТЪРГОВИЩЕ\" АД","125501290","2017-03-31","2-1171",1,"обезценка на активи ","Разходи",{"$f":"'2-Отчет за доходите'!C20","v":0}]
["\"МБАЛ - ТЪРГОВИЩЕ\" АД","125501290","2017-03-31","2-1172",1,"провизии","Разходи",{"$f":"'2-Отчет за доходите'!C21","v":0}]
["\"МБАЛ - ТЪРГОВИЩЕ\" АД","125501290","2017-03-31","2-1100",1,"I. Разходи по икономически елементи","Разходи",{"$f":"'2-Отчет за доходите'!C22","v":3463}]
["\"МБАЛ - ТЪРГОВИЩЕ\" АД","125501290","2017-03-31","2-1210",1,"1. Разходи за лихви","Разходи",{"$f":"'2-Отчет за доходите'!C25","v":0}]
["\"МБАЛ - ТЪРГОВИЩЕ\" АД","125501290","2017-03-31","2-1220",1,"2. Отрицателни разлики от операции с финансови активи и инструменти","Разходи",{"$f":"'2-Отчет за доходите'!C26","v":0}]
["\"МБАЛ - ТЪРГОВИЩЕ\" АД","125501290","2017-03-31","2-1230",1,"3. Отрицателни разлики от промяна на валутни курсове","Разходи",{"$f":"'2-Отчет за доходите'!C27","v":0}]
["\"МБАЛ - ТЪРГОВИЩЕ\" АД","125501290","2017-03-31","2-1240",1,"4. Други ","Разходи",{"$f":"'2-Отчет за доходите'!C28","v":1}]
["\"МБАЛ - ТЪРГОВИЩЕ\" АД","125501290","2017-03-31","2-1200",1,"II. Финансови   разходи","Разходи",{"$f":"'2-Отчет за доходите'!C29","v":1}]
["\"МБАЛ - ТЪРГОВИЩЕ\" АД","125501290","2017-03-31","2-1300",1,"Б. Общо разходи за дейността (I + II)","Разходи",{"$f":"'2-Отчет за доходите'!C31","v":3464}]
["\"МБАЛ - ТЪРГОВИЩЕ\" АД","125501290","2017-03-31","2-1310",1,"В.  Печалба от дейността","Разходи",{"$f":"'2-Отчет за доходите'!C33","v":0}]
["\"МБАЛ - ТЪРГОВИЩЕ\" АД","125501290","2017-03-31","2-1250-1",1,"III. Дял от печалбата на асоциирани и съвместни предприятия","Разходи",{"$f":"'2-Отчет за доходите'!C34","v":0}]
["\"МБАЛ - ТЪРГОВИЩЕ\" АД","125501290","2017-03-31","2-1250",1,"IV. Извънредни разходи","Разходи",{"$f":"'2-Отчет за доходите'!C35","v":0}]
["\"МБАЛ - ТЪРГОВИЩЕ\" АД","125501290","2017-03-31","2-1350",1,"Г. Общо разходи  (Б+ III +IV)","Разходи",{"$f":"'2-Отчет за доходите'!C36","v":3464}]
["\"МБАЛ - ТЪРГОВИЩЕ\" АД","125501290","2017-03-31","2-1400",1,"Д. Печалба преди облагане с данъци","Разходи",{"$f":"'2-Отчет за доходите'!C37","v":0}]
["\"МБАЛ - ТЪРГОВИЩЕ\" АД","125501290","2017-03-31","2-1450",1,"V. Разходи за данъци","Разходи",{"$f":"'2-Отчет за доходите'!C38","v":0}]
["\"МБАЛ - ТЪРГОВИЩЕ\" АД","125501290","2017-03-31","2-1451",1,"1.Разходи за текущи корпоративни данъци върху печалбата ","Разходи",{"$f":"'2-Отчет за доходите'!C39","v":0}]
["\"МБАЛ - ТЪРГОВИЩЕ\" АД","125501290","2017-03-31","2-1452",1,"2. Разход /(икономия) на отсрочени корпоративни данъци върху печалбата  ","Разходи",{"$f":"'2-Отчет за доходите'!C40","v":0}]
["\"МБАЛ - ТЪРГОВИЩЕ\" АД","125501290","2017-03-31","2-1453",1,"3. Други","Разходи",{"$f":"'2-Отчет за доходите'!C41","v":0}]
["\"МБАЛ - ТЪРГОВИЩЕ\" АД","125501290","2017-03-31","2-0454",1,"E. Печалба след облагане с данъци (Д - V)","Разходи",{"$f":"'2-Отчет за доходите'!C42","v":0}]
["\"МБАЛ - ТЪРГОВИЩЕ\" АД","125501290","2017-03-31","2-0454-1",1,"в т.ч. за малцинствено участие ","Разходи",{"$f":"'2-Отчет за доходите'!C43","v":0}]
["\"МБАЛ - ТЪРГОВИЩЕ\" АД","125501290","2017-03-31","2-0454-2",1,"Ж. Нетна печалба за периода ","Разходи",{"$f":"'2-Отчет за доходите'!C44","v":0}]
["\"МБАЛ - ТЪРГОВИЩЕ\" АД","125501290","2017-03-31","2-1500",1,"Всичко (Г+ V + Е):","Разходи",{"$f":"'2-Отчет за доходите'!C45","v":3464}]
["\"МБАЛ - ТЪРГОВИЩЕ\" АД","125501290","2017-03-31","2-1551",1,"1. Продукция","Приходи",{"$f":"'2-Отчет за доходите'!G12","v":5}]
["\"МБАЛ - ТЪРГОВИЩЕ\" АД","125501290","2017-03-31","2-1552",1,"2. Стоки","Приходи",{"$f":"'2-Отчет за доходите'!G13","v":0}]
[{"$f":"pdeName","v":"\"МБАЛ - ТЪРГОВИЩЕ\" АД"},{"$f":"pdeBulstat","v":"125501290"},{"$f":"endDate","v":"2017-03-31"},"2-1560",1,"3. Услуги","Приходи",{"$f":"'2-Отчет за доходите'!G14","v":2995}]
["\"МБАЛ - ТЪРГОВИЩЕ\" АД","125501290","2017-03-31","2-1556",1,"4. Други ","Приходи",{"$f":"'2-Отчет за доходите'!G15","v":0}]
["\"МБАЛ - ТЪРГОВИЩЕ\" АД","125501290","2017-03-31","2-1610",1,"I. Нетни приходи от продажби на:","Приходи",{"$f":"'2-Отчет за доходите'!G16","v":3000}]
["\"МБАЛ - ТЪРГОВИЩЕ\" АД","125501290","2017-03-31","2-1620",1,"II. Приходи от финансирания ","Приходи",{"$f":"'2-Отчет за доходите'!G18","v":452}]
["\"МБАЛ - ТЪРГОВИЩЕ\" АД","125501290","2017-03-31","2-1621",1,"в т.ч. от правителството ","Приходи",{"$f":"'2-Отчет за доходите'!G19","v":398}]
["\"МБАЛ - ТЪРГОВИЩЕ\" АД","125501290","2017-03-31","2-1710",1,"1. Приходи от лихви ","Приходи",{"$f":"'2-Отчет за доходите'!G22","v":0}]
["\"МБАЛ - ТЪРГОВИЩЕ\" АД","125501290","2017-03-31","2-1721",1,"2. Приходи от дивиденти ","Приходи",{"$f":"'2-Отчет за доходите'!G23","v":0}]
["\"МБАЛ - ТЪРГОВИЩЕ\" АД","125501290","2017-03-31","2-1730",1,"3. Положителни разлики от операции с финансови активи и инструменти","Приходи",{"$f":"'2-Отчет за доходите'!G24","v":0}]
["\"МБАЛ - ТЪРГОВИЩЕ\" АД","125501290","2017-03-31","2-1740",1,"4. Положителни разлики от промяна на валутни курсове","Приходи",{"$f":"'2-Отчет за доходите'!G25","v":0}]
["\"МБАЛ - ТЪРГОВИЩЕ\" АД","125501290","2017-03-31","2-1745",1,"5. Други ","Приходи",{"$f":"'2-Отчет за доходите'!G26","v":0}]
["\"МБАЛ - ТЪРГОВИЩЕ\" АД","125501290","2017-03-31","2-1700",1,"III. Финансови   приходи","Приходи",{"$f":"'2-Отчет за доходите'!G27","v":0}]
["\"МБАЛ - ТЪРГОВИЩЕ\" АД","125501290","2017-03-31","2-1600",1,"Б.   Общо приходи от дейността \n(I + II + III):","Приходи",{"$f":"'2-Отчет за доходите'!G31","v":3452}]
["\"МБАЛ - ТЪРГОВИЩЕ\" АД","125501290","2017-03-31","2-1810",1,"В. Загуба от дейността","Приходи",{"$f":"'2-Отчет за доходите'!G33","v":12}]
["\"МБАЛ - ТЪРГОВИЩЕ\" АД","125501290","2017-03-31","2-1810-1",1,"IV. Дял от загубата на асоциирани и съвместни предприятия","Приходи",{"$f":"'2-Отчет за доходите'!G34","v":0}]
["\"МБАЛ - ТЪРГОВИЩЕ\" АД","125501290","2017-03-31","2-1750",1,"V. Извънредни приходи ","Приходи",{"$f":"'2-Отчет за доходите'!G35","v":0}]
["\"МБАЛ - ТЪРГОВИЩЕ\" АД","125501290","2017-03-31","2-1800",1,"Г. Общо приходи   (Б + IV + V)","Приходи",{"$f":"'2-Отчет за доходите'!G36","v":3452}]
["\"МБАЛ - ТЪРГОВИЩЕ\" АД","125501290","2017-03-31","2-1850",1,"Д. Загуба преди облагане с данъци ","Приходи",{"$f":"'2-Отчет за доходите'!G37","v":12}]
["\"МБАЛ - ТЪРГОВИЩЕ\" АД","125501290","2017-03-31","2-0455",1,"E. Загуба след облагане с данъци (Д + V)","Приходи",{"$f":"'2-Отчет за доходите'!G42","v":12}]
["\"МБАЛ - ТЪРГОВИЩЕ\" АД","125501290","2017-03-31","2-0455-1",1,"в т.ч. за малцинствено участие ","Приходи",{"$f":"'2-Отчет за доходите'!G43","v":0}]
["\"МБАЛ - ТЪРГОВИЩЕ\" АД","125501290","2017-03-31","2-0455-2",1,"Ж. Нетна загуба за периода ","Приходи",{"$f":"'2-Отчет за доходите'!G44","v":12}]
["\"МБАЛ - ТЪРГОВИЩЕ\" АД","125501290","2017-03-31","2-1900",1,"Всичко (Г + E):","Приходи",{"$f":"'2-Отчет за доходите'!G45","v":3464}]
[null,null,null,null,null,"ОПП"]
[{"$f":"pdeName","v":"\"МБАЛ - ТЪРГОВИЩЕ\" АД"},{"$f":"pdeBulstat","v":"125501290"},{"$f":"endDate","v":"2017-03-31"},"3-2201",1,"1. Постъпления от клиенти ","ПП от оперативна дейност",{"$f":"'3-Отчет за паричния поток'!C11","v":3272}]
["\"МБАЛ - ТЪРГОВИЩЕ\" АД","125501290","2017-03-31","3-2201-1",1,"2. Плащания на доставчици","ПП от оперативна дейност",{"$f":"'3-Отчет за паричния поток'!C12","v":-1431}]
["\"МБАЛ - ТЪРГОВИЩЕ\" АД","125501290","2017-03-31","3-2202",1,"3. Плащания/постъпления, свързани с финансови активи, държани с цел търговия ","ПП от оперативна дейност",{"$f":"'3-Отчет за паричния поток'!C13","v":0}]
["\"МБАЛ - ТЪРГОВИЩЕ\" АД","125501290","2017-03-31","3-2203",1,"4. Плащания, свързани с възнаграждения","ПП от оперативна дейност",{"$f":"'3-Отчет за паричния поток'!C14","v":-1929}]
["\"МБАЛ - ТЪРГОВИЩЕ\" АД","125501290","2017-03-31","3-2206",1,"5. Платени /възстановени данъци (без корпоративен данък върху печалбата)","ПП от оперативна дейност",{"$f":"'3-Отчет за паричния поток'!C15","v":0}]
["\"МБАЛ - ТЪРГОВИЩЕ\" АД","125501290","2017-03-31","3-2206-1",1,"6. Платени корпоративни данъци върху печалбата","ПП от оперативна дейност",{"$f":"'3-Отчет за паричния поток'!C16","v":0}]
["\"МБАЛ - ТЪРГОВИЩЕ\" АД","125501290","2017-03-31","3-2204",1,"7. Получени лихви ","ПП от оперативна дейност",{"$f":"'3-Отчет за паричния поток'!C17","v":0}]
["\"МБАЛ - ТЪРГОВИЩЕ\" АД","125501290","2017-03-31","3-2204-1",1,"8. Платени банкови такси и лихви върху краткосрочни заеми за оборотни средства ","ПП от оперативна дейност",{"$f":"'3-Отчет за паричния поток'!C18","v":0}]
["\"МБАЛ - ТЪРГОВИЩЕ\" АД","125501290","2017-03-31","3-2205",1,"9. Курсови разлики","ПП от оперативна дейност",{"$f":"'3-Отчет за паричния поток'!C19","v":0}]
["\"МБАЛ - ТЪРГОВИЩЕ\" АД","125501290","2017-03-31","3-2208",1,"10. Други постъпления /плащания от оперативна дейност","ПП от оперативна дейност",{"$f":"'3-Отчет за паричния поток'!C20","v":59}]
["\"МБАЛ - ТЪРГОВИЩЕ\" АД","125501290","2017-03-31","3-2200",1," Нетен паричен поток от оперативна дейност (А):","ПП от оперативна дейност",{"$f":"'3-Отчет за паричния поток'!C21","v":-29}]
["\"МБАЛ - ТЪРГОВИЩЕ\" АД","125501290","2017-03-31","3-2301",1,"1. Покупка на дълготрайни активи ","ПП от инвестиционна дейност",{"$f":"'3-Отчет за паричния поток'!C23","v":0}]
["\"МБАЛ - ТЪРГОВИЩЕ\" АД","125501290","2017-03-31","3-2301-1",1,"2. Постъпления от  продажба на дълготрайни активи","ПП от инвестиционна дейност",{"$f":"'3-Отчет за паричния поток'!C24","v":0}]
["\"МБАЛ - ТЪРГОВИЩЕ\" АД","125501290","2017-03-31","3-2302",1,"3. Предоставени заеми","ПП от инвестиционна дейност",{"$f":"'3-Отчет за паричния поток'!C25","v":0}]
["\"МБАЛ - ТЪРГОВИЩЕ\" АД","125501290","2017-03-31","3-2302-1",1,"4. Възстановени (платени) предоставени заеми, в т.ч. по финансов  лизинг","ПП от инвестиционна дейност",{"$f":"'3-Отчет за паричния поток'!C26","v":0}]
["\"МБАЛ - ТЪРГОВИЩЕ\" АД","125501290","2017-03-31","3-2302-2",1,"5. Получени лихви по предоставени заеми ","ПП от инвестиционна дейност",{"$f":"'3-Отчет за паричния поток'!C27","v":0}]
["\"МБАЛ - ТЪРГОВИЩЕ\" АД","125501290","2017-03-31","3-2302-3",1,"6. Покупка на инвестиции ","ПП от инвестиционна дейност",{"$f":"'3-Отчет за паричния поток'!C28","v":0}]
["\"МБАЛ - ТЪРГОВИЩЕ\" АД","125501290","2017-03-31","3-2302-4",1,"7. Постъпления от продажба на инвестиции","ПП от инвестиционна дейност",{"$f":"'3-Отчет за паричния поток'!C29","v":0}]
["\"МБАЛ - ТЪРГОВИЩЕ\" АД","125501290","2017-03-31","3-2303",1,"8. Получени дивиденти от инвестиции ","ПП от инвестиционна дейност",{"$f":"'3-Отчет за паричния поток'!C30","v":0}]
["\"МБАЛ - ТЪРГОВИЩЕ\" АД","125501290","2017-03-31","3-2305",1,"9. Курсови разлики","ПП от инвестиционна дейност",{"$f":"'3-Отчет за паричния поток'!C31","v":0}]
["\"МБАЛ - ТЪРГОВИЩЕ\" АД","125501290","2017-03-31","3-2306",1,"10. Други постъпления/ плащания от инвестиционна дейност","ПП от инвестиционна дейност",{"$f":"'3-Отчет за паричния поток'!C32","v":0}]
["\"МБАЛ - ТЪРГОВИЩЕ\" АД","125501290","2017-03-31","3-2300",1,"Нетен поток от инвестиционна дейност (Б):","ПП от инвестиционна дейност",{"$f":"'3-Отчет за паричния поток'!C33","v":0}]
["\"МБАЛ - ТЪРГОВИЩЕ\" АД","125501290","2017-03-31","3-2401",1,"1. Постъпления от емитиране на ценни книжа","ПП от финансова дейност",{"$f":"'3-Отчет за паричния поток'!C35","v":0}]
["\"МБАЛ - ТЪРГОВИЩЕ\" АД","125501290","2017-03-31","3-2401-1",1,"2. Плащания при обратно придобиване на ценни книжа","ПП от финансова дейност",{"$f":"'3-Отчет за паричния поток'!C36","v":0}]
["\"МБАЛ - ТЪРГОВИЩЕ\" АД","125501290","2017-03-31","3-2403",1,"3. Постъпления от заеми ","ПП от финансова дейност",{"$f":"'3-Отчет за паричния поток'!C37","v":0}]
["\"МБАЛ - ТЪРГОВИЩЕ\" АД","125501290","2017-03-31","3-2403-1",1,"4. Платени  заеми ","ПП от финансова дейност",{"$f":"'3-Отчет за паричния поток'!C38","v":0}]
["\"МБАЛ - ТЪРГОВИЩЕ\" АД","125501290","2017-03-31","3-2405",1,"5. Платени задължения по лизингови договори","ПП от финансова дейност",{"$f":"'3-Отчет за паричния поток'!C39","v":0}]
["\"МБАЛ - ТЪРГОВИЩЕ\" АД","125501290","2017-03-31","3-2404",1,"6. Платени  лихви, такси, комисиони по заеми с инвестиционно предназначение ","ПП от финансова дейност",{"$f":"'3-Отчет за паричния поток'!C40","v":0}]
["\"МБАЛ - ТЪРГОВИЩЕ\" АД","125501290","2017-03-31","3-2404-1",1,"7 . Изплатени дивиденти","ПП от финансова дейност",{"$f":"'3-Отчет за паричния поток'!C41","v":0}]
["\"МБАЛ - ТЪРГОВИЩЕ\" АД","125501290","2017-03-31","3-2407",1,"8. Други постъпления/ плащания от финансова дейност","ПП от финансова дейност",{"$f":"'3-Отчет за паричния поток'!C42","v":-1}]
["\"МБАЛ - ТЪРГОВИЩЕ\" АД","125501290","2017-03-31","3-2400",1,"Нетен паричен поток от финансова дейност (В):","ПП от финансова дейност",{"$f":"'3-Отчет за паричния поток'!C43","v":-1}]
["\"МБАЛ - ТЪРГОВИЩЕ\" АД","125501290","2017-03-31","3-2500",1,"Г. Изменения на паричните средства през периода (А+Б+В):",null,{"$f":"'3-Отчет за паричния поток'!C44","v":-30}]
["\"МБАЛ - ТЪРГОВИЩЕ\" АД","125501290","2017-03-31","3-2600",1,"Д. Парични средства в началото на периода",null,{"$f":"'3-Отчет за паричния поток'!C45","v":1125}]
["\"МБАЛ - ТЪРГОВИЩЕ\" АД","125501290","2017-03-31","3-2700",1,"Е. Парични средства в края на периода, в т.ч.: ",null,{"$f":"'3-Отчет за паричния поток'!C46","v":1095}]
["\"МБАЛ - ТЪРГОВИЩЕ\" АД","125501290","2017-03-31","3-2700-1",1,"наличност в касата и по банкови сметки ",null,{"$f":"'3-Отчет за паричния поток'!C47","v":0}]
["\"МБАЛ - ТЪРГОВИЩЕ\" АД","125501290","2017-03-31","3-2700-2",1,"блокирани парични средства  ",null,{"$f":"'3-Отчет за паричния поток'!C48","v":0}]
[null,null,null,null,null,"ОСК"]
[{"$f":"pdeName","v":"\"МБАЛ - ТЪРГОВИЩЕ\" АД"},{"$f":"pdeBulstat","v":"125501290"},{"$f":"endDate","v":"2017-03-31"},"4-01",1,"Салдо в началото на отчетния период ",null,{"$f":"'4-Отчет за собствения капитал'!C13","v":3401}]
["\"МБАЛ - ТЪРГОВИЩЕ\" АД","125501290","2017-03-31","4-15",1,"Промени в началните салда поради:",null,{"$f":"'4-Отчет за собствения капитал'!C14","v":0}]
["\"МБАЛ - ТЪРГОВИЩЕ\" АД","125501290","2017-03-31","4-15-1",1,"Ефект от промени в счетоводната политика ",null,{"$f":"'4-Отчет за собствения капитал'!C15","v":0}]
["\"МБАЛ - ТЪРГОВИЩЕ\" АД","125501290","2017-03-31","4-15-2",1,"Фундаментални грешки ",null,{"$f":"'4-Отчет за собствения капитал'!C16","v":0}]
["\"МБАЛ - ТЪРГОВИЩЕ\" АД","125501290","2017-03-31","4-01-1",1,"Коригирано салдо в началото на отчетния период ",null,{"$f":"'4-Отчет за собствения капитал'!C17","v":3401}]
["\"МБАЛ - ТЪРГОВИЩЕ\" АД","125501290","2017-03-31","4-05",1,"Нетна печалба/загуба за периода  ",null,{"$f":"'4-Отчет за собствения капитал'!C18","v":0}]
["\"МБАЛ - ТЪРГОВИЩЕ\" АД","125501290","2017-03-31","4-06",1,"1. Разпределение на печалбата за:",null,{"$f":"'4-Отчет за собствения капитал'!C19","v":0}]
["\"МБАЛ - ТЪРГОВИЩЕ\" АД","125501290","2017-03-31","4-07",1," дивиденти",null,{"$f":"'4-Отчет за собствения капитал'!C20","v":0}]
["\"МБАЛ - ТЪРГОВИЩЕ\" АД","125501290","2017-03-31","4-07-1",1," други ",null,{"$f":"'4-Отчет за собствения капитал'!C21","v":0}]
["\"МБАЛ - ТЪРГОВИЩЕ\" АД","125501290","2017-03-31","4-08",1,"2. Покриване на загуби",null,{"$f":"'4-Отчет за собствения капитал'!C22","v":0}]
["\"МБАЛ - ТЪРГОВИЩЕ\" АД","125501290","2017-03-31","4-09",1,"3. Последващи оценки на дълготрайни материални и нематериални активи, в т.ч.",null,{"$f":"'4-Отчет за собствения капитал'!C23","v":0}]
["\"МБАЛ - ТЪРГОВИЩЕ\" АД","125501290","2017-03-31","4-10",1,"увеличения    ",null,{"$f":"'4-Отчет за собствения капитал'!C24","v":0}]
["\"МБАЛ - ТЪРГОВИЩЕ\" АД","125501290","2017-03-31","4-11",1,"намаления",null,{"$f":"'4-Отчет за собствения капитал'!C25","v":0}]
["\"МБАЛ - ТЪРГОВИЩЕ\" АД","125501290","2017-03-31","4-12",1,"4. Последващи оценки на финансови активи и инструменти, в т.ч.",null,{"$f":"'4-Отчет за собствения капитал'!C26","v":0}]
["\"МБАЛ - ТЪРГОВИЩЕ\" АД","125501290","2017-03-31","4-13",1,"увеличения    ",null,{"$f":"'4-Отчет за собствения капитал'!C27","v":0}]
["\"МБАЛ - ТЪРГОВИЩЕ\" АД","125501290","2017-03-31","4-14",1,"намаления",null,{"$f":"'4-Отчет за собствения капитал'!C28","v":0}]
["\"МБАЛ - ТЪРГОВИЩЕ\" АД","125501290","2017-03-31","4-16-1",1,"5. Ефект от отсрочени данъци ",null,{"$f":"'4-Отчет за собствения капитал'!C29","v":0}]
["\"МБАЛ - ТЪРГОВИЩЕ\" АД","125501290","2017-03-31","4-16",1,"6. Други изменения",null,{"$f":"'4-Отчет за собствения капитал'!C30","v":0}]
["\"МБАЛ - ТЪРГОВИЩЕ\" АД","125501290","2017-03-31","4-17",1,"Салдо към края на отчетния период ",null,{"$f":"'4-Отчет за собствения капитал'!C31","v":3401}]
["\"МБАЛ - ТЪРГОВИЩЕ\" АД","125501290","2017-03-31","4-18",1,"7. Промени от преводи на годишни финансови отчети на предприятия в чужбина",null,{"$f":"'4-Отчет за собствения капитал'!C32","v":0}]
["\"МБАЛ - ТЪРГОВИЩЕ\" АД","125501290","2017-03-31","4-19",1,"8. Промени от преизчисляване на финансови отчети при свръхинфлация",null,{"$f":"'4-Отчет за собствения капитал'!C33","v":0}]
["\"МБАЛ - ТЪРГОВИЩЕ\" АД","125501290","2017-03-31","4-20",1,"Собствен капитал \nкъм края на отчетния период ",null,{"$f":"'4-Отчет за собствения капитал'!C34","v":3401}]
["\"МБАЛ - ТЪРГОВИЩЕ\" АД","125501290","2017-03-31","4-01",2,"Салдо в началото на отчетния период ",null,{"$f":"'4-Отчет за собствения капитал'!D13","v":0}]
["\"МБАЛ - ТЪРГОВИЩЕ\" АД","125501290","2017-03-31","4-15",2,"Промени в началните салда поради:",null,{"$f":"'4-Отчет за собствения капитал'!D14","v":0}]
["\"МБАЛ - ТЪРГОВИЩЕ\" АД","125501290","2017-03-31","4-15-1",2,"Ефект от промени в счетоводната политика ",null,{"$f":"'4-Отчет за собствения капитал'!D15","v":0}]
["\"МБАЛ - ТЪРГОВИЩЕ\" АД","125501290","2017-03-31","4-15-2",2,"Фундаментални грешки ",null,{"$f":"'4-Отчет за собствения капитал'!D16","v":0}]
["\"МБАЛ - ТЪРГОВИЩЕ\" АД","125501290","2017-03-31","4-01-1",2,"Коригирано салдо в началото на отчетния период ",null,{"$f":"'4-Отчет за собствения капитал'!D17","v":0}]
["\"МБАЛ - ТЪРГОВИЩЕ\" АД","125501290","2017-03-31","4-05",2,"Нетна печалба/загуба за периода  ",null,{"$f":"'4-Отчет за собствения капитал'!D18","v":0}]
["\"МБАЛ - ТЪРГОВИЩЕ\" АД","125501290","2017-03-31","4-06",2,"1. Разпределение на печалбата за:",null,{"$f":"'4-Отчет за собствения капитал'!D19","v":0}]
["\"МБАЛ - ТЪРГОВИЩЕ\" АД","125501290","2017-03-31","4-07",2," дивиденти",null,{"$f":"'4-Отчет за собствения капитал'!D20","v":0}]
["\"МБАЛ - ТЪРГОВИЩЕ\" АД","125501290","2017-03-31","4-07-1",2," други ",null,{"$f":"'4-Отчет за собствения капитал'!D21","v":0}]
["\"МБАЛ - ТЪРГОВИЩЕ\" АД","125501290","2017-03-31","4-08",2,"2. Покриване на загуби",null,{"$f":"'4-Отчет за собствения капитал'!D22","v":0}]
["\"МБАЛ - ТЪРГОВИЩЕ\" АД","125501290","2017-03-31","4-09",2,"3. Последващи оценки на дълготрайни материални и нематериални активи, в т.ч.",null,{"$f":"'4-Отчет за собствения капитал'!D23","v":0}]
["\"МБАЛ - ТЪРГОВИЩЕ\" АД","125501290","2017-03-31","4-10",2,"увеличения    ",null,{"$f":"'4-Отчет за собствения капитал'!D24","v":0}]
["\"МБАЛ - ТЪРГОВИЩЕ\" АД","125501290","2017-03-31","4-11",2,"намаления",null,{"$f":"'4-Отчет за собствения капитал'!D25","v":0}]
["\"МБАЛ - ТЪРГОВИЩЕ\" АД","125501290","2017-03-31","4-12",2,"4. Последващи оценки на финансови активи и инструменти, в т.ч.",null,{"$f":"'4-Отчет за собствения капитал'!D26","v":0}]
["\"МБАЛ - ТЪРГОВИЩЕ\" АД","125501290","2017-03-31","4-13",2,"увеличения    ",null,{"$f":"'4-Отчет за собствения капитал'!D27","v":0}]
["\"МБАЛ - ТЪРГОВИЩЕ\" АД","125501290","2017-03-31","4-14",2,"намаления",null,{"$f":"'4-Отчет за собствения капитал'!D28","v":0}]
["\"МБАЛ - ТЪРГОВИЩЕ\" АД","125501290","2017-03-31","4-16-1",2,"5. Ефект от отсрочени данъци ",null,{"$f":"'4-Отчет за собствения капитал'!D29","v":0}]
["\"МБАЛ - ТЪРГОВИЩЕ\" АД","125501290","2017-03-31","4-16",2,"6. Други изменения",null,{"$f":"'4-Отчет за собствения капитал'!D30","v":0}]
["\"МБАЛ - ТЪРГОВИЩЕ\" АД","125501290","2017-03-31","4-17",2,"Салдо към края на отчетния период ",null,{"$f":"'4-Отчет за собствения капитал'!D31","v":0}]
["\"МБАЛ - ТЪРГОВИЩЕ\" АД","125501290","2017-03-31","4-18",2,"7. Промени от преводи на годишни финансови отчети на предприятия в чужбина",null,{"$f":"'4-Отчет за собствения капитал'!D32","v":0}]
["\"МБАЛ - ТЪРГОВИЩЕ\" АД","125501290","2017-03-31","4-19",2,"8. Промени от преизчисляване на финансови отчети при свръхинфлация",null,{"$f":"'4-Отчет за собствения капитал'!D33","v":0}]
["\"МБАЛ - ТЪРГОВИЩЕ\" АД","125501290","2017-03-31","4-20",2,"Собствен капитал \nкъм края на отчетния период ",null,{"$f":"'4-Отчет за собствения капитал'!D34","v":0}]
["\"МБАЛ - ТЪРГОВИЩЕ\" АД","125501290","2017-03-31","4-01",3,"Салдо в началото на отчетния период ",null,{"$f":"'4-Отчет за собствения капитал'!E13","v":2558}]
["\"МБАЛ - ТЪРГОВИЩЕ\" АД","125501290","2017-03-31","4-15",3,"Промени в началните салда поради:",null,{"$f":"'4-Отчет за собствения капитал'!E14","v":0}]
["\"МБАЛ - ТЪРГОВИЩЕ\" АД","125501290","2017-03-31","4-15-1",3,"Ефект от промени в счетоводната политика ",null,{"$f":"'4-Отчет за собствения капитал'!E15","v":0}]
["\"МБАЛ - ТЪРГОВИЩЕ\" АД","125501290","2017-03-31","4-15-2",3,"Фундаментални грешки ",null,{"$f":"'4-Отчет за собствения капитал'!E16","v":0}]
["\"МБАЛ - ТЪРГОВИЩЕ\" АД","125501290","2017-03-31","4-01-1",3,"Коригирано салдо в началото на отчетния период ",null,{"$f":"'4-Отчет за собствения капитал'!E17","v":2558}]
["\"МБАЛ - ТЪРГОВИЩЕ\" АД","125501290","2017-03-31","4-05",3,"Нетна печалба/загуба за периода  ",null,{"$f":"'4-Отчет за собствения капитал'!E18","v":0}]
["\"МБАЛ - ТЪРГОВИЩЕ\" АД","125501290","2017-03-31","4-06",3,"1. Разпределение на печалбата за:",null,{"$f":"'4-Отчет за собствения капитал'!E19","v":0}]
["\"МБАЛ - ТЪРГОВИЩЕ\" АД","125501290","2017-03-31","4-07",3," дивиденти",null,{"$f":"'4-Отчет за собствения капитал'!E20","v":0}]
["\"МБАЛ - ТЪРГОВИЩЕ\" АД","125501290","2017-03-31","4-07-1",3," други ",null,{"$f":"'4-Отчет за собствения капитал'!E21","v":0}]
["\"МБАЛ - ТЪРГОВИЩЕ\" АД","125501290","2017-03-31","4-08",3,"2. Покриване на загуби",null,{"$f":"'4-Отчет за собствения капитал'!E22","v":0}]
["\"МБАЛ - ТЪРГОВИЩЕ\" АД","125501290","2017-03-31","4-09",3,"3. Последващи оценки на дълготрайни материални и нематериални активи, в т.ч.",null,{"$f":"'4-Отчет за собствения капитал'!E23","v":0}]
["\"МБАЛ - ТЪРГОВИЩЕ\" АД","125501290","2017-03-31","4-10",3,"увеличения    ",null,{"$f":"'4-Отчет за собствения капитал'!E24","v":0}]
["\"МБАЛ - ТЪРГОВИЩЕ\" АД","125501290","2017-03-31","4-11",3,"намаления",null,{"$f":"'4-Отчет за собствения капитал'!E25","v":0}]
["\"МБАЛ - ТЪРГОВИЩЕ\" АД","125501290","2017-03-31","4-12",3,"4. Последващи оценки на финансови активи и инструменти, в т.ч.",null,{"$f":"'4-Отчет за собствения капитал'!E26","v":0}]
["\"МБАЛ - ТЪРГОВИЩЕ\" АД","125501290","2017-03-31","4-13",3,"увеличения    ",null,{"$f":"'4-Отчет за собствения капитал'!E27","v":0}]
["\"МБАЛ - ТЪРГОВИЩЕ\" АД","125501290","2017-03-31","4-14",3,"намаления",null,{"$f":"'4-Отчет за собствения капитал'!E28","v":0}]
["\"МБАЛ - ТЪРГОВИЩЕ\" АД","125501290","2017-03-31","4-16-1",3,"5. Ефект от отсрочени данъци ",null,{"$f":"'4-Отчет за собствения капитал'!E29","v":0}]
["\"МБАЛ - ТЪРГОВИЩЕ\" АД","125501290","2017-03-31","4-16",3,"6. Други изменения",null,{"$f":"'4-Отчет за собствения капитал'!E30","v":0}]
["\"МБАЛ - ТЪРГОВИЩЕ\" АД","125501290","2017-03-31","4-17",3,"Салдо към края на отчетния период ",null,{"$f":"'4-Отчет за собствения капитал'!E31","v":2558}]
["\"МБАЛ - ТЪРГОВИЩЕ\" АД","125501290","2017-03-31","4-18",3,"7. Промени от преводи на годишни финансови отчети на предприятия в чужбина",null,{"$f":"'4-Отчет за собствения капитал'!E32","v":0}]
[{"$f":"pdeName","v":"\"МБАЛ - ТЪРГОВИЩЕ\" АД"},{"$f":"pdeBulstat","v":"125501290"},{"$f":"endDate","v":"2017-03-31"},"4-19",3,"8. Промени от преизчисляване на финансови отчети при свръхинфлация",null,{"$f":"'4-Отчет за собствения капитал'!E33","v":0}]
["\"МБАЛ - ТЪРГОВИЩЕ\" АД","125501290","2017-03-31","4-20",3,"Собствен капитал \nкъм края на отчетния период ",null,{"$f":"'4-Отчет за собствения капитал'!E34","v":2558}]
["\"МБАЛ - ТЪРГОВИЩЕ\" АД","125501290","2017-03-31","4-01",4,"Салдо в началото на отчетния период ",null,{"$f":"'4-Отчет за собствения капитал'!F13","v":165}]
["\"МБАЛ - ТЪРГОВИЩЕ\" АД","125501290","2017-03-31","4-15",4,"Промени в началните салда поради:",null,{"$f":"'4-Отчет за собствения капитал'!F14","v":0}]
["\"МБАЛ - ТЪРГОВИЩЕ\" АД","125501290","2017-03-31","4-15-1",4,"Ефект от промени в счетоводната политика ",null,{"$f":"'4-Отчет за собствения капитал'!F15","v":0}]
["\"МБАЛ - ТЪРГОВИЩЕ\" АД","125501290","2017-03-31","4-15-2",4,"Фундаментални грешки ",null,{"$f":"'4-Отчет за собствения капитал'!F16","v":0}]
["\"МБАЛ - ТЪРГОВИЩЕ\" АД","125501290","2017-03-31","4-01-1",4,"Коригирано салдо в началото на отчетния период ",null,{"$f":"'4-Отчет за собствения капитал'!F17","v":165}]
["\"МБАЛ - ТЪРГОВИЩЕ\" АД","125501290","2017-03-31","4-05",4,"Нетна печалба/загуба за периода  ",null,{"$f":"'4-Отчет за собствения капитал'!F18","v":0}]
["\"МБАЛ - ТЪРГОВИЩЕ\" АД","125501290","2017-03-31","4-06",4,"1. Разпределение на печалбата за:",null,{"$f":"'4-Отчет за собствения капитал'!F19","v":0}]
["\"МБАЛ - ТЪРГОВИЩЕ\" АД","125501290","2017-03-31","4-07",4," дивиденти",null,{"$f":"'4-Отчет за собствения капитал'!F20","v":0}]
["\"МБАЛ - ТЪРГОВИЩЕ\" АД","125501290","2017-03-31","4-07-1",4," други ",null,{"$f":"'4-Отчет за собствения капитал'!F21","v":0}]
["\"МБАЛ - ТЪРГОВИЩЕ\" АД","125501290","2017-03-31","4-08",4,"2. Покриване на загуби",null,{"$f":"'4-Отчет за собствения капитал'!F22","v":0}]
["\"МБАЛ - ТЪРГОВИЩЕ\" АД","125501290","2017-03-31","4-09",4,"3. Последващи оценки на дълготрайни материални и нематериални активи, в т.ч.",null,{"$f":"'4-Отчет за собствения капитал'!F23","v":0}]
["\"МБАЛ - ТЪРГОВИЩЕ\" АД","125501290","2017-03-31","4-10",4,"увеличения    ",null,{"$f":"'4-Отчет за собствения капитал'!F24","v":0}]
["\"МБАЛ - ТЪРГОВИЩЕ\" АД","125501290","2017-03-31","4-11",4,"намаления",null,{"$f":"'4-Отчет за собствения капитал'!F25","v":0}]
["\"МБАЛ - ТЪРГОВИЩЕ\" АД","125501290","2017-03-31","4-12",4,"4. Последващи оценки на финансови активи и инструменти, в т.ч.",null,{"$f":"'4-Отчет за собствения капитал'!F26","v":0}]
["\"МБАЛ - ТЪРГОВИЩЕ\" АД","125501290","2017-03-31","4-13",4,"увеличения    ",null,{"$f":"'4-Отчет за собствения капитал'!F27","v":0}]
["\"МБАЛ - ТЪРГОВИЩЕ\" АД","125501290","2017-03-31","4-14",4,"намаления",null,{"$f":"'4-Отчет за собствения капитал'!F28","v":0}]
["\"МБАЛ - ТЪРГОВИЩЕ\" АД","125501290","2017-03-31","4-16-1",4,"5. Ефект от отсрочени данъци ",null,{"$f":"'4-Отчет за собствения капитал'!F29","v":0}]
["\"МБАЛ - ТЪРГОВИЩЕ\" АД","125501290","2017-03-31","4-16",4,"6. Други изменения",null,{"$f":"'4-Отчет за собствения капитал'!F30","v":0}]
["\"МБАЛ - ТЪРГОВИЩЕ\" АД","125501290","2017-03-31","4-17",4,"Салдо към края на отчетния период ",null,{"$f":"'4-Отчет за собствения капитал'!F31","v":165}]
["\"МБАЛ - ТЪРГОВИЩЕ\" АД","125501290","2017-03-31","4-18",4,"7. Промени от преводи на годишни финансови отчети на предприятия в чужбина",null,{"$f":"'4-Отчет за собствения капитал'!F32","v":0}]
["\"МБАЛ - ТЪРГОВИЩЕ\" АД","125501290","2017-03-31","4-19",4,"8. Промени от преизчисляване на финансови отчети при свръхинфлация",null,{"$f":"'4-Отчет за собствения капитал'!F33","v":0}]
["\"МБАЛ - ТЪРГОВИЩЕ\" АД","125501290","2017-03-31","4-20",4,"Собствен капитал \nкъм края на отчетния период ",null,{"$f":"'4-Отчет за собствения капитал'!F34","v":165}]
["\"МБАЛ - ТЪРГОВИЩЕ\" АД","125501290","2017-03-31","4-01",5,"Салдо в началото на отчетния период ",null,{"$f":"'4-Отчет за собствения капитал'!G13","v":0}]
["\"МБАЛ - ТЪРГОВИЩЕ\" АД","125501290","2017-03-31","4-15",5,"Промени в началните салда поради:",null,{"$f":"'4-Отчет за собствения капитал'!G14","v":0}]
["\"МБАЛ - ТЪРГОВИЩЕ\" АД","125501290","2017-03-31","4-15-1",5,"Ефект от промени в счетоводната политика ",null,{"$f":"'4-Отчет за собствения капитал'!G15","v":0}]
["\"МБАЛ - ТЪРГОВИЩЕ\" АД","125501290","2017-03-31","4-15-2",5,"Фундаментални грешки ",null,{"$f":"'4-Отчет за собствения капитал'!G16","v":0}]
["\"МБАЛ - ТЪРГОВИЩЕ\" АД","125501290","2017-03-31","4-01-1",5,"Коригирано салдо в началото на отчетния период ",null,{"$f":"'4-Отчет за собствения капитал'!G17","v":0}]
["\"МБАЛ - ТЪРГОВИЩЕ\" АД","125501290","2017-03-31","4-05",5,"Нетна печалба/загуба за периода  ",null,{"$f":"'4-Отчет за собствения капитал'!G18","v":0}]
["\"МБАЛ - ТЪРГОВИЩЕ\" АД","125501290","2017-03-31","4-06",5,"1. Разпределение на печалбата за:",null,{"$f":"'4-Отчет за собствения капитал'!G19","v":0}]
["\"МБАЛ - ТЪРГОВИЩЕ\" АД","125501290","2017-03-31","4-07",5," дивиденти",null,{"$f":"'4-Отчет за собствения капитал'!G20","v":0}]
["\"МБАЛ - ТЪРГОВИЩЕ\" АД","125501290","2017-03-31","4-07-1",5," други ",null,{"$f":"'4-Отчет за собствения капитал'!G21","v":0}]
["\"МБАЛ - ТЪРГОВИЩЕ\" АД","125501290","2017-03-31","4-08",5,"2. Покриване на загуби",null,{"$f":"'4-Отчет за собствения капитал'!G22","v":0}]
["\"МБАЛ - ТЪРГОВИЩЕ\" АД","125501290","2017-03-31","4-09",5,"3. Последващи оценки на дълготрайни материални и нематериални активи, в т.ч.",null,{"$f":"'4-Отчет за собствения капитал'!G23","v":0}]
["\"МБАЛ - ТЪРГОВИЩЕ\" АД","125501290","2017-03-31","4-10",5,"увеличения    ",null,{"$f":"'4-Отчет за собствения капитал'!G24","v":0}]
["\"МБАЛ - ТЪРГОВИЩЕ\" АД","125501290","2017-03-31","4-11",5,"намаления",null,{"$f":"'4-Отчет за собствения капитал'!G25","v":0}]
["\"МБАЛ - ТЪРГОВИЩЕ\" АД","125501290","2017-03-31","4-12",5,"4. Последващи оценки на финансови активи и инструменти, в т.ч.",null,{"$f":"'4-Отчет за собствения капитал'!G26","v":0}]
["\"МБАЛ - ТЪРГОВИЩЕ\" АД","125501290","2017-03-31","4-13",5,"увеличения    ",null,{"$f":"'4-Отчет за собствения капитал'!G27","v":0}]
["\"МБАЛ - ТЪРГОВИЩЕ\" АД","125501290","2017-03-31","4-14",5,"намаления",null,{"$f":"'4-Отчет за собствения капитал'!G28","v":0}]
["\"МБАЛ - ТЪРГОВИЩЕ\" АД","125501290","2017-03-31","4-16-1",5,"5. Ефект от отсрочени данъци ",null,{"$f":"'4-Отчет за собствения капитал'!G29","v":0}]
["\"МБАЛ - ТЪРГОВИЩЕ\" АД","125501290","2017-03-31","4-16",5,"6. Други изменения",null,{"$f":"'4-Отчет за собствения капитал'!G30","v":0}]
["\"МБАЛ - ТЪРГОВИЩЕ\" АД","125501290","2017-03-31","4-17",5,"Салдо към края на отчетния период ",null,{"$f":"'4-Отчет за собствения капитал'!G31","v":0}]
["\"МБАЛ - ТЪРГОВИЩЕ\" АД","125501290","2017-03-31","4-18",5,"7. Промени от преводи на годишни финансови отчети на предприятия в чужбина",null,{"$f":"'4-Отчет за собствения капитал'!G32","v":0}]
["\"МБАЛ - ТЪРГОВИЩЕ\" АД","125501290","2017-03-31","4-19",5,"8. Промени от преизчисляване на финансови отчети при свръхинфлация",null,{"$f":"'4-Отчет за собствения капитал'!G33","v":0}]
["\"МБАЛ - ТЪРГОВИЩЕ\" АД","125501290","2017-03-31","4-20",5,"Собствен капитал \nкъм края на отчетния период ",null,{"$f":"'4-Отчет за собствения капитал'!G34","v":0}]
["\"МБАЛ - ТЪРГОВИЩЕ\" АД","125501290","2017-03-31","4-01",6,"Салдо в началото на отчетния период ",null,{"$f":"'4-Отчет за собствения капитал'!H13","v":98}]
["\"МБАЛ - ТЪРГОВИЩЕ\" АД","125501290","2017-03-31","4-15",6,"Промени в началните салда поради:",null,{"$f":"'4-Отчет за собствения капитал'!H14","v":0}]
["\"МБАЛ - ТЪРГОВИЩЕ\" АД","125501290","2017-03-31","4-15-1",6,"Ефект от промени в счетоводната политика ",null,{"$f":"'4-Отчет за собствения капитал'!H15","v":0}]
["\"МБАЛ - ТЪРГОВИЩЕ\" АД","125501290","2017-03-31","4-15-2",6,"Фундаментални грешки ",null,{"$f":"'4-Отчет за собствения капитал'!H16","v":0}]
["\"МБАЛ - ТЪРГОВИЩЕ\" АД","125501290","2017-03-31","4-01-1",6,"Коригирано салдо в началото на отчетния период ",null,{"$f":"'4-Отчет за собствения капитал'!H17","v":98}]
["\"МБАЛ - ТЪРГОВИЩЕ\" АД","125501290","2017-03-31","4-05",6,"Нетна печалба/загуба за периода  ",null,{"$f":"'4-Отчет за собствения капитал'!H18","v":0}]
["\"МБАЛ - ТЪРГОВИЩЕ\" АД","125501290","2017-03-31","4-06",6,"1. Разпределение на печалбата за:",null,{"$f":"'4-Отчет за собствения капитал'!H19","v":0}]
["\"МБАЛ - ТЪРГОВИЩЕ\" АД","125501290","2017-03-31","4-07",6," дивиденти",null,{"$f":"'4-Отчет за собствения капитал'!H20","v":0}]
["\"МБАЛ - ТЪРГОВИЩЕ\" АД","125501290","2017-03-31","4-07-1",6," други ",null,{"$f":"'4-Отчет за собствения капитал'!H21","v":0}]
["\"МБАЛ - ТЪРГОВИЩЕ\" АД","125501290","2017-03-31","4-08",6,"2. Покриване на загуби",null,{"$f":"'4-Отчет за собствения капитал'!H22","v":0}]
["\"МБАЛ - ТЪРГОВИЩЕ\" АД","125501290","2017-03-31","4-09",6,"3. Последващи оценки на дълготрайни материални и нематериални активи, в т.ч.",null,{"$f":"'4-Отчет за собствения капитал'!H23","v":0}]
["\"МБАЛ - ТЪРГОВИЩЕ\" АД","125501290","2017-03-31","4-10",6,"увеличения    ",null,{"$f":"'4-Отчет за собствения капитал'!H24","v":0}]
["\"МБАЛ - ТЪРГОВИЩЕ\" АД","125501290","2017-03-31","4-11",6,"намаления",null,{"$f":"'4-Отчет за собствения капитал'!H25","v":0}]
["\"МБАЛ - ТЪРГОВИЩЕ\" АД","125501290","2017-03-31","4-12",6,"4. Последващи оценки на финансови активи и инструменти, в т.ч.",null,{"$f":"'4-Отчет за собствения капитал'!H26","v":0}]
["\"МБАЛ - ТЪРГОВИЩЕ\" АД","125501290","2017-03-31","4-13",6,"увеличения    ",null,{"$f":"'4-Отчет за собствения капитал'!H27","v":0}]
["\"МБАЛ - ТЪРГОВИЩЕ\" АД","125501290","2017-03-31","4-14",6,"намаления",null,{"$f":"'4-Отчет за собствения капитал'!H28","v":0}]
["\"МБАЛ - ТЪРГОВИЩЕ\" АД","125501290","2017-03-31","4-16-1",6,"5. Ефект от отсрочени данъци ",null,{"$f":"'4-Отчет за собствения капитал'!H29","v":0}]
["\"МБАЛ - ТЪРГОВИЩЕ\" АД","125501290","2017-03-31","4-16",6,"6. Други изменения",null,{"$f":"'4-Отчет за собствения капитал'!H30","v":0}]
[{"$f":"pdeName","v":"\"МБАЛ - ТЪРГОВИЩЕ\" АД"},{"$f":"pdeBulstat","v":"125501290"},{"$f":"endDate","v":"2017-03-31"},"4-17",6,"Салдо към края на отчетния период ",null,{"$f":"'4-Отчет за собствения капитал'!H31","v":98}]
["\"МБАЛ - ТЪРГОВИЩЕ\" АД","125501290","2017-03-31","4-18",6,"7. Промени от преводи на годишни финансови отчети на предприятия в чужбина",null,{"$f":"'4-Отчет за собствения капитал'!H32","v":0}]
["\"МБАЛ - ТЪРГОВИЩЕ\" АД","125501290","2017-03-31","4-19",6,"8. Промени от преизчисляване на финансови отчети при свръхинфлация",null,{"$f":"'4-Отчет за собствения капитал'!H33","v":0}]
["\"МБАЛ - ТЪРГОВИЩЕ\" АД","125501290","2017-03-31","4-20",6,"Собствен капитал \nкъм края на отчетния период ",null,{"$f":"'4-Отчет за собствения капитал'!H34","v":98}]
["\"МБАЛ - ТЪРГОВИЩЕ\" АД","125501290","2017-03-31","4-01",7,"Салдо в началото на отчетния период ",null,{"$f":"'4-Отчет за собствения капитал'!I13","v":0}]
["\"МБАЛ - ТЪРГОВИЩЕ\" АД","125501290","2017-03-31","4-15",7,"Промени в началните салда поради:",null,{"$f":"'4-Отчет за собствения капитал'!I14","v":0}]
["\"МБАЛ - ТЪРГОВИЩЕ\" АД","125501290","2017-03-31","4-15-1",7,"Ефект от промени в счетоводната политика ",null,{"$f":"'4-Отчет за собствения капитал'!I15","v":0}]
["\"МБАЛ - ТЪРГОВИЩЕ\" АД","125501290","2017-03-31","4-15-2",7,"Фундаментални грешки ",null,{"$f":"'4-Отчет за собствения капитал'!I16","v":0}]
["\"МБАЛ - ТЪРГОВИЩЕ\" АД","125501290","2017-03-31","4-01-1",7,"Коригирано салдо в началото на отчетния период ",null,{"$f":"'4-Отчет за собствения капитал'!I17","v":0}]
["\"МБАЛ - ТЪРГОВИЩЕ\" АД","125501290","2017-03-31","4-05",7,"Нетна печалба/загуба за периода  ",null,{"$f":"'4-Отчет за собствения капитал'!I18","v":0}]
["\"МБАЛ - ТЪРГОВИЩЕ\" АД","125501290","2017-03-31","4-06",7,"1. Разпределение на печалбата за:",null,{"$f":"'4-Отчет за собствения капитал'!I19","v":0}]
["\"МБАЛ - ТЪРГОВИЩЕ\" АД","125501290","2017-03-31","4-07",7," дивиденти",null,{"$f":"'4-Отчет за собствения капитал'!I20","v":0}]
["\"МБАЛ - ТЪРГОВИЩЕ\" АД","125501290","2017-03-31","4-07-1",7," други ",null,{"$f":"'4-Отчет за собствения капитал'!I21","v":0}]
["\"МБАЛ - ТЪРГОВИЩЕ\" АД","125501290","2017-03-31","4-08",7,"2. Покриване на загуби",null,{"$f":"'4-Отчет за собствения капитал'!I22","v":0}]
["\"МБАЛ - ТЪРГОВИЩЕ\" АД","125501290","2017-03-31","4-09",7,"3. Последващи оценки на дълготрайни материални и нематериални активи, в т.ч.",null,{"$f":"'4-Отчет за собствения капитал'!I23","v":0}]
["\"МБАЛ - ТЪРГОВИЩЕ\" АД","125501290","2017-03-31","4-10",7,"увеличения    ",null,{"$f":"'4-Отчет за собствения капитал'!I24","v":0}]
["\"МБАЛ - ТЪРГОВИЩЕ\" АД","125501290","2017-03-31","4-11",7,"намаления",null,{"$f":"'4-Отчет за собствения капитал'!I25","v":0}]
["\"МБАЛ - ТЪРГОВИЩЕ\" АД","125501290","2017-03-31","4-12",7,"4. Последващи оценки на финансови активи и инструменти, в т.ч.",null,{"$f":"'4-Отчет за собствения капитал'!I26","v":0}]
["\"МБАЛ - ТЪРГОВИЩЕ\" АД","125501290","2017-03-31","4-13",7,"увеличения    ",null,{"$f":"'4-Отчет за собствения капитал'!I27","v":0}]
["\"МБАЛ - ТЪРГОВИЩЕ\" АД","125501290","2017-03-31","4-14",7,"намаления",null,{"$f":"'4-Отчет за собствения капитал'!I28","v":0}]
["\"МБАЛ - ТЪРГОВИЩЕ\" АД","125501290","2017-03-31","4-16-1",7,"5. Ефект от отсрочени данъци ",null,{"$f":"'4-Отчет за собствения капитал'!I29","v":0}]
["\"МБАЛ - ТЪРГОВИЩЕ\" АД","125501290","2017-03-31","4-16",7,"6. Други изменения",null,{"$f":"'4-Отчет за собствения капитал'!I30","v":0}]
["\"МБАЛ - ТЪРГОВИЩЕ\" АД","125501290","2017-03-31","4-17",7,"Салдо към края на отчетния период ",null,{"$f":"'4-Отчет за собствения капитал'!I31","v":0}]
["\"МБАЛ - ТЪРГОВИЩЕ\" АД","125501290","2017-03-31","4-18",7,"7. Промени от преводи на годишни финансови отчети на предприятия в чужбина",null,{"$f":"'4-Отчет за собствения капитал'!I32","v":0}]
["\"МБАЛ - ТЪРГОВИЩЕ\" АД","125501290","2017-03-31","4-19",7,"8. Промени от преизчисляване на финансови отчети при свръхинфлация",null,{"$f":"'4-Отчет за собствения капитал'!I33","v":0}]
["\"МБАЛ - ТЪРГОВИЩЕ\" АД","125501290","2017-03-31","4-20",7,"Собствен капитал \nкъм края на отчетния период ",null,{"$f":"'4-Отчет за собствения капитал'!I34","v":0}]
["\"МБАЛ - ТЪРГОВИЩЕ\" АД","125501290","2017-03-31","4-01",8,"Салдо в началото на отчетния период ",null,{"$f":"'4-Отчет за собствения капитал'!J13","v":-1684}]
["\"МБАЛ - ТЪРГОВИЩЕ\" АД","125501290","2017-03-31","4-15",8,"Промени в началните салда поради:",null,{"$f":"'4-Отчет за собствения капитал'!J14","v":0}]
["\"МБАЛ - ТЪРГОВИЩЕ\" АД","125501290","2017-03-31","4-15-1",8,"Ефект от промени в счетоводната политика ",null,{"$f":"'4-Отчет за собствения капитал'!J15","v":0}]
["\"МБАЛ - ТЪРГОВИЩЕ\" АД","125501290","2017-03-31","4-15-2",8,"Фундаментални грешки ",null,{"$f":"'4-Отчет за собствения капитал'!J16","v":0}]
["\"МБАЛ - ТЪРГОВИЩЕ\" АД","125501290","2017-03-31","4-01-1",8,"Коригирано салдо в началото на отчетния период ",null,{"$f":"'4-Отчет за собствения капитал'!J17","v":-1684}]
["\"МБАЛ - ТЪРГОВИЩЕ\" АД","125501290","2017-03-31","4-05",8,"Нетна печалба/загуба за периода  ",null,{"$f":"'4-Отчет за собствения капитал'!J18","v":-12}]
["\"МБАЛ - ТЪРГОВИЩЕ\" АД","125501290","2017-03-31","4-06",8,"1. Разпределение на печалбата за:",null,{"$f":"'4-Отчет за собствения капитал'!J19","v":0}]
["\"МБАЛ - ТЪРГОВИЩЕ\" АД","125501290","2017-03-31","4-07",8," дивиденти",null,{"$f":"'4-Отчет за собствения капитал'!J20","v":0}]
["\"МБАЛ - ТЪРГОВИЩЕ\" АД","125501290","2017-03-31","4-07-1",8," други ",null,{"$f":"'4-Отчет за собствения капитал'!J21","v":0}]
["\"МБАЛ - ТЪРГОВИЩЕ\" АД","125501290","2017-03-31","4-08",8,"2. Покриване на загуби",null,{"$f":"'4-Отчет за собствения капитал'!J22","v":0}]
["\"МБАЛ - ТЪРГОВИЩЕ\" АД","125501290","2017-03-31","4-09",8,"3. Последващи оценки на дълготрайни материални и нематериални активи, в т.ч.",null,{"$f":"'4-Отчет за собствения капитал'!J23","v":0}]
["\"МБАЛ - ТЪРГОВИЩЕ\" АД","125501290","2017-03-31","4-10",8,"увеличения    ",null,{"$f":"'4-Отчет за собствения капитал'!J24","v":0}]
["\"МБАЛ - ТЪРГОВИЩЕ\" АД","125501290","2017-03-31","4-11",8,"намаления",null,{"$f":"'4-Отчет за собствения капитал'!J25","v":0}]
["\"МБАЛ - ТЪРГОВИЩЕ\" АД","125501290","2017-03-31","4-12",8,"4. Последващи оценки на финансови активи и инструменти, в т.ч.",null,{"$f":"'4-Отчет за собствения капитал'!J26","v":0}]
["\"МБАЛ - ТЪРГОВИЩЕ\" АД","125501290","2017-03-31","4-13",8,"увеличения    ",null,{"$f":"'4-Отчет за собствения капитал'!J27","v":0}]
["\"МБАЛ - ТЪРГОВИЩЕ\" АД","125501290","2017-03-31","4-14",8,"намаления",null,{"$f":"'4-Отчет за собствения капитал'!J28","v":0}]
["\"МБАЛ - ТЪРГОВИЩЕ\" АД","125501290","2017-03-31","4-16-1",8,"5. Ефект от отсрочени данъци ",null,{"$f":"'4-Отчет за собствения капитал'!J29","v":0}]
["\"МБАЛ - ТЪРГОВИЩЕ\" АД","125501290","2017-03-31","4-16",8,"6. Други изменения",null,{"$f":"'4-Отчет за собствения капитал'!J30","v":0}]
["\"МБАЛ - ТЪРГОВИЩЕ\" АД","125501290","2017-03-31","4-17",8,"Салдо към края на отчетния период ",null,{"$f":"'4-Отчет за собствения капитал'!J31","v":-1696}]
["\"МБАЛ - ТЪРГОВИЩЕ\" АД","125501290","2017-03-31","4-18",8,"7. Промени от преводи на годишни финансови отчети на предприятия в чужбина",null,{"$f":"'4-Отчет за собствения капитал'!J32","v":0}]
["\"МБАЛ - ТЪРГОВИЩЕ\" АД","125501290","2017-03-31","4-19",8,"8. Промени от преизчисляване на финансови отчети при свръхинфлация",null,{"$f":"'4-Отчет за собствения капитал'!J33","v":0}]
["\"МБАЛ - ТЪРГОВИЩЕ\" АД","125501290","2017-03-31","4-20",8,"Собствен капитал \nкъм края на отчетния период ",null,{"$f":"'4-Отчет за собствения капитал'!J34","v":-1696}]
["\"МБАЛ - ТЪРГОВИЩЕ\" АД","125501290","2017-03-31","4-01",9,"Салдо в началото на отчетния период ",null,{"$f":"'4-Отчет за собствения капитал'!K13","v":0}]
["\"МБАЛ - ТЪРГОВИЩЕ\" АД","125501290","2017-03-31","4-15",9,"Промени в началните салда поради:",null,{"$f":"'4-Отчет за собствения капитал'!K14","v":0}]
["\"МБАЛ - ТЪРГОВИЩЕ\" АД","125501290","2017-03-31","4-15-1",9,"Ефект от промени в счетоводната политика ",null,{"$f":"'4-Отчет за собствения капитал'!K15","v":0}]
["\"МБАЛ - ТЪРГОВИЩЕ\" АД","125501290","2017-03-31","4-15-2",9,"Фундаментални грешки ",null,{"$f":"'4-Отчет за собствения капитал'!K16","v":0}]
["\"МБАЛ - ТЪРГОВИЩЕ\" АД","125501290","2017-03-31","4-01-1",9,"Коригирано салдо в началото на отчетния период ",null,{"$f":"'4-Отчет за собствения капитал'!K17","v":0}]
["\"МБАЛ - ТЪРГОВИЩЕ\" АД","125501290","2017-03-31","4-05",9,"Нетна печалба/загуба за периода  ",null,{"$f":"'4-Отчет за собствения капитал'!K18","v":0}]
["\"МБАЛ - ТЪРГОВИЩЕ\" АД","125501290","2017-03-31","4-06",9,"1. Разпределение на печалбата за:",null,{"$f":"'4-Отчет за собствения капитал'!K19","v":0}]
["\"МБАЛ - ТЪРГОВИЩЕ\" АД","125501290","2017-03-31","4-07",9," дивиденти",null,{"$f":"'4-Отчет за собствения капитал'!K20","v":0}]
["\"МБАЛ - ТЪРГОВИЩЕ\" АД","125501290","2017-03-31","4-07-1",9," други ",null,{"$f":"'4-Отчет за собствения капитал'!K21","v":0}]
["\"МБАЛ - ТЪРГОВИЩЕ\" АД","125501290","2017-03-31","4-08",9,"2. Покриване на загуби",null,{"$f":"'4-Отчет за собствения капитал'!K22","v":0}]
["\"МБАЛ - ТЪРГОВИЩЕ\" АД","125501290","2017-03-31","4-09",9,"3. Последващи оценки на дълготрайни материални и нематериални активи, в т.ч.",null,{"$f":"'4-Отчет за собствения капитал'!K23","v":0}]
["\"МБАЛ - ТЪРГОВИЩЕ\" АД","125501290","2017-03-31","4-10",9,"увеличения    ",null,{"$f":"'4-Отчет за собствения капитал'!K24","v":0}]
["\"МБАЛ - ТЪРГОВИЩЕ\" АД","125501290","2017-03-31","4-11",9,"намаления",null,{"$f":"'4-Отчет за собствения капитал'!K25","v":0}]
["\"МБАЛ - ТЪРГОВИЩЕ\" АД","125501290","2017-03-31","4-12",9,"4. Последващи оценки на финансови активи и инструменти, в т.ч.",null,{"$f":"'4-Отчет за собствения капитал'!K26","v":0}]
["\"МБАЛ - ТЪРГОВИЩЕ\" АД","125501290","2017-03-31","4-13",9,"увеличения    ",null,{"$f":"'4-Отчет за собствения капитал'!K27","v":0}]
["\"МБАЛ - ТЪРГОВИЩЕ\" АД","125501290","2017-03-31","4-14",9,"намаления",null,{"$f":"'4-Отчет за собствения капитал'!K28","v":0}]
[{"$f":"pdeName","v":"\"МБАЛ - ТЪРГОВИЩЕ\" АД"},{"$f":"pdeBulstat","v":"125501290"},{"$f":"endDate","v":"2017-03-31"},"4-16-1",9,"5. Ефект от отсрочени данъци ",null,{"$f":"'4-Отчет за собствения капитал'!K29","v":0}]
["\"МБАЛ - ТЪРГОВИЩЕ\" АД","125501290","2017-03-31","4-16",9,"6. Други изменения",null,{"$f":"'4-Отчет за собствения капитал'!K30","v":0}]
["\"МБАЛ - ТЪРГОВИЩЕ\" АД","125501290","2017-03-31","4-17",9,"Салдо към края на отчетния период ",null,{"$f":"'4-Отчет за собствения капитал'!K31","v":0}]
["\"МБАЛ - ТЪРГОВИЩЕ\" АД","125501290","2017-03-31","4-18",9,"7. Промени от преводи на годишни финансови отчети на предприятия в чужбина",null,{"$f":"'4-Отчет за собствения капитал'!K32","v":0}]
["\"МБАЛ - ТЪРГОВИЩЕ\" АД","125501290","2017-03-31","4-19",9,"8. Промени от преизчисляване на финансови отчети при свръхинфлация",null,{"$f":"'4-Отчет за собствения капитал'!K33","v":0}]
["\"МБАЛ - ТЪРГОВИЩЕ\" АД","125501290","2017-03-31","4-20",9,"Собствен капитал \nкъм края на отчетния период ",null,{"$f":"'4-Отчет за собствения капитал'!K34","v":0}]
["\"МБАЛ - ТЪРГОВИЩЕ\" АД","125501290","2017-03-31","4-01",10,"Салдо в началото на отчетния период ",null,{"$f":"'4-Отчет за собствения капитал'!L13","v":4538}]
["\"МБАЛ - ТЪРГОВИЩЕ\" АД","125501290","2017-03-31","4-15",10,"Промени в началните салда поради:",null,{"$f":"'4-Отчет за собствения капитал'!L14","v":0}]
["\"МБАЛ - ТЪРГОВИЩЕ\" АД","125501290","2017-03-31","4-15-1",10,"Ефект от промени в счетоводната политика ",null,{"$f":"'4-Отчет за собствения капитал'!L15","v":0}]
["\"МБАЛ - ТЪРГОВИЩЕ\" АД","125501290","2017-03-31","4-15-2",10,"Фундаментални грешки ",null,{"$f":"'4-Отчет за собствения капитал'!L16","v":0}]
["\"МБАЛ - ТЪРГОВИЩЕ\" АД","125501290","2017-03-31","4-01-1",10,"Коригирано салдо в началото на отчетния период ",null,{"$f":"'4-Отчет за собствения капитал'!L17","v":4538}]
["\"МБАЛ - ТЪРГОВИЩЕ\" АД","125501290","2017-03-31","4-05",10,"Нетна печалба/загуба за периода  ",null,{"$f":"'4-Отчет за собствения капитал'!L18","v":-12}]
["\"МБАЛ - ТЪРГОВИЩЕ\" АД","125501290","2017-03-31","4-06",10,"1. Разпределение на печалбата за:",null,{"$f":"'4-Отчет за собствения капитал'!L19","v":0}]
["\"МБАЛ - ТЪРГОВИЩЕ\" АД","125501290","2017-03-31","4-07",10," дивиденти",null,{"$f":"'4-Отчет за собствения капитал'!L20","v":0}]
["\"МБАЛ - ТЪРГОВИЩЕ\" АД","125501290","2017-03-31","4-07-1",10," други ",null,{"$f":"'4-Отчет за собствения капитал'!L21","v":0}]
["\"МБАЛ - ТЪРГОВИЩЕ\" АД","125501290","2017-03-31","4-08",10,"2. Покриване на загуби",null,{"$f":"'4-Отчет за собствения капитал'!L22","v":0}]
["\"МБАЛ - ТЪРГОВИЩЕ\" АД","125501290","2017-03-31","4-09",10,"3. Последващи оценки на дълготрайни материални и нематериални активи, в т.ч.",null,{"$f":"'4-Отчет за собствения капитал'!L23","v":0}]
["\"МБАЛ - ТЪРГОВИЩЕ\" АД","125501290","2017-03-31","4-10",10,"увеличения    ",null,{"$f":"'4-Отчет за собствения капитал'!L24","v":0}]
["\"МБАЛ - ТЪРГОВИЩЕ\" АД","125501290","2017-03-31","4-11",10,"намаления",null,{"$f":"'4-Отчет за собствения капитал'!L25","v":0}]
["\"МБАЛ - ТЪРГОВИЩЕ\" АД","125501290","2017-03-31","4-12",10,"4. Последващи оценки на финансови активи и инструменти, в т.ч.",null,{"$f":"'4-Отчет за собствения капитал'!L26","v":0}]
["\"МБАЛ - ТЪРГОВИЩЕ\" АД","125501290","2017-03-31","4-13",10,"увеличения    ",null,{"$f":"'4-Отчет за собствения капитал'!L27","v":0}]
["\"МБАЛ - ТЪРГОВИЩЕ\" АД","125501290","2017-03-31","4-14",10,"намаления",null,{"$f":"'4-Отчет за собствения капитал'!L28","v":0}]
["\"МБАЛ - ТЪРГОВИЩЕ\" АД","125501290","2017-03-31","4-16-1",10,"5. Ефект от отсрочени данъци ",null,{"$f":"'4-Отчет за собствения капитал'!L29","v":0}]
["\"МБАЛ - ТЪРГОВИЩЕ\" АД","125501290","2017-03-31","4-16",10,"6. Други изменения",null,{"$f":"'4-Отчет за собствения капитал'!L30","v":0}]
["\"МБАЛ - ТЪРГОВИЩЕ\" АД","125501290","2017-03-31","4-17",10,"Салдо към края на отчетния период ",null,{"$f":"'4-Отчет за собствения капитал'!L31","v":4526}]
["\"МБАЛ - ТЪРГОВИЩЕ\" АД","125501290","2017-03-31","4-18",10,"7. Промени от преводи на годишни финансови отчети на предприятия в чужбина",null,{"$f":"'4-Отчет за собствения капитал'!L32","v":0}]
["\"МБАЛ - ТЪРГОВИЩЕ\" АД","125501290","2017-03-31","4-19",10,"8. Промени от преизчисляване на финансови отчети при свръхинфлация",null,{"$f":"'4-Отчет за собствения капитал'!L33","v":0}]
["\"МБАЛ - ТЪРГОВИЩЕ\" АД","125501290","2017-03-31","4-20",10,"Собствен капитал \nкъм края на отчетния период ",null,{"$f":"'4-Отчет за собствения капитал'!L34","v":4526}]
["\"МБАЛ - ТЪРГОВИЩЕ\" АД","125501290","2017-03-31","4-01",11,"Салдо в началото на отчетния период ",null,{"$f":"'4-Отчет за собствения капитал'!M13","v":0}]
["\"МБАЛ - ТЪРГОВИЩЕ\" АД","125501290","2017-03-31","4-15",11,"Промени в началните салда поради:",null,{"$f":"'4-Отчет за собствения капитал'!M14","v":0}]
["\"МБАЛ - ТЪРГОВИЩЕ\" АД","125501290","2017-03-31","4-15-1",11,"Ефект от промени в счетоводната политика ",null,{"$f":"'4-Отчет за собствения капитал'!M15","v":0}]
["\"МБАЛ - ТЪРГОВИЩЕ\" АД","125501290","2017-03-31","4-15-2",11,"Фундаментални грешки ",null,{"$f":"'4-Отчет за собствения капитал'!M16","v":0}]
["\"МБАЛ - ТЪРГОВИЩЕ\" АД","125501290","2017-03-31","4-01-1",11,"Коригирано салдо в началото на отчетния период ",null,{"$f":"'4-Отчет за собствения капитал'!M17","v":0}]
["\"МБАЛ - ТЪРГОВИЩЕ\" АД","125501290","2017-03-31","4-05",11,"Нетна печалба/загуба за периода  ",null,{"$f":"'4-Отчет за собствения капитал'!M18","v":0}]
["\"МБАЛ - ТЪРГОВИЩЕ\" АД","125501290","2017-03-31","4-06",11,"1. Разпределение на печалбата за:",null,{"$f":"'4-Отчет за собствения капитал'!M19","v":0}]
["\"МБАЛ - ТЪРГОВИЩЕ\" АД","125501290","2017-03-31","4-07",11," дивиденти",null,{"$f":"'4-Отчет за собствения капитал'!M20","v":0}]
["\"МБАЛ - ТЪРГОВИЩЕ\" АД","125501290","2017-03-31","4-07-1",11," други ",null,{"$f":"'4-Отчет за собствения капитал'!M21","v":0}]
["\"МБАЛ - ТЪРГОВИЩЕ\" АД","125501290","2017-03-31","4-08",11,"2. Покриване на загуби",null,{"$f":"'4-Отчет за собствения капитал'!M22","v":0}]
["\"МБАЛ - ТЪРГОВИЩЕ\" АД","125501290","2017-03-31","4-09",11,"3. Последващи оценки на дълготрайни материални и нематериални активи, в т.ч.",null,{"$f":"'4-Отчет за собствения капитал'!M23","v":0}]
["\"МБАЛ - ТЪРГОВИЩЕ\" АД","125501290","2017-03-31","4-10",11,"увеличения    ",null,{"$f":"'4-Отчет за собствения капитал'!M24","v":0}]
["\"МБАЛ - ТЪРГОВИЩЕ\" АД","125501290","2017-03-31","4-11",11,"намаления",null,{"$f":"'4-Отчет за собствения капитал'!M25","v":0}]
["\"МБАЛ - ТЪРГОВИЩЕ\" АД","125501290","2017-03-31","4-12",11,"4. Последващи оценки на финансови активи и инструменти, в т.ч.",null,{"$f":"'4-Отчет за собствения капитал'!M26","v":0}]
["\"МБАЛ - ТЪРГОВИЩЕ\" АД","125501290","2017-03-31","4-13",11,"увеличения    ",null,{"$f":"'4-Отчет за собствения капитал'!M27","v":0}]
["\"МБАЛ - ТЪРГОВИЩЕ\" АД","125501290","2017-03-31","4-14",11,"намаления",null,{"$f":"'4-Отчет за собствения капитал'!M28","v":0}]
["\"МБАЛ - ТЪРГОВИЩЕ\" АД","125501290","2017-03-31","4-16-1",11,"5. Ефект от отсрочени данъци ",null,{"$f":"'4-Отчет за собствения капитал'!M29","v":0}]
["\"МБАЛ - ТЪРГОВИЩЕ\" АД","125501290","2017-03-31","4-16",11,"6. Други изменения",null,{"$f":"'4-Отчет за собствения капитал'!M30","v":0}]
["\"МБАЛ - ТЪРГОВИЩЕ\" АД","125501290","2017-03-31","4-17",11,"Салдо към края на отчетния период ",null,{"$f":"'4-Отчет за собствения капитал'!M31","v":0}]
["\"МБАЛ - ТЪРГОВИЩЕ\" АД","125501290","2017-03-31","4-18",11,"7. Промени от преводи на годишни финансови отчети на предприятия в чужбина",null,{"$f":"'4-Отчет за собствения капитал'!M32","v":0}]
["\"МБАЛ - ТЪРГОВИЩЕ\" АД","125501290","2017-03-31","4-19",11,"8. Промени от преизчисляване на финансови отчети при свръхинфлация",null,{"$f":"'4-Отчет за собствения капитал'!M33","v":0}]
["\"МБАЛ - ТЪРГОВИЩЕ\" АД","125501290","2017-03-31","4-20",11,"Собствен капитал \nкъм края на отчетния период ",null,{"$f":"'4-Отчет за собствения капитал'!M34","v":0}]
[null,null,null,null,null,"Нетекущи активи"]
[null,null,null,null,null,"Вземания и задължения"]
[null,null,null,null,null,"Финансови инструменти"]
[null,null,null,null,null,"Инвестиции в дъщерни, смесени, асоциирани и други дружества"]
[{"$f":"pdeName","v":"\"МБАЛ - ТЪРГОВИЩЕ\" АД"},{"$f":"pdeBulstat","v":"125501290"},{"$f":"endDate","v":"2017-03-31"},"8-4001",1,"I. Инвестиции в дъщерни предприятия",null,{"$f":"'Справка 5'!C27","v":0}]
["\"МБАЛ - ТЪРГОВИЩЕ\" АД","125501290","2017-03-31","8-4006",1,"II. Инвестиции в смесени предприятия",null,{"$f":"'Справка 5'!C44","v":0}]
["\"МБАЛ - ТЪРГОВИЩЕ\" АД","125501290","2017-03-31","84011",1,"III. Инвестиции в асоциирани предприятия",null,{"$f":"'Справка 5'!C61","v":2}]
["\"МБАЛ - ТЪРГОВИЩЕ\" АД","125501290","2017-03-31","8-4016",1,"IV. Инвестиции в други предприятия",null,{"$f":"'Справка 5'!C78","v":0}]
["\"МБАЛ - ТЪРГОВИЩЕ\" АД","125501290","2017-03-31","8-4025",1,"А. В СТРАНАТА",null,{"$f":"'Справка 5'!C79","v":2}]
["\"МБАЛ - ТЪРГОВИЩЕ\" АД","125501290","2017-03-31","8-4030",1,"I. Инвестиции в дъщерни предприятия",null,{"$f":"'Справка 5'!C97","v":0}]
["\"МБАЛ - ТЪРГОВИЩЕ\" АД","125501290","2017-03-31","8-4035",1,"II. Инвестиции в смесени предприятия",null,{"$f":"'Справка 5'!C114","v":0}]
["\"МБАЛ - ТЪРГОВИЩЕ\" АД","125501290","2017-03-31","8-4040",1,"III. Инвестиции в асоциирани предприятия",null,{"$f":"'Справка 5'!C131","v":0}]
["\"МБАЛ - ТЪРГОВИЩЕ\" АД","125501290","2017-03-31","8-4045",1,"IV. Инвестиции в други предприятия",null,{"$f":"'Справка 5'!C148","v":0}]
["\"МБАЛ - ТЪРГОВИЩЕ\" АД","125501290","2017-03-31","8-4050",1,"Б. В ЧУЖБИНА",null,{"$f":"'Справка 5'!C149","v":0}]
["\"МБАЛ - ТЪРГОВИЩЕ\" АД","125501290","2017-03-31","8-4001",2,"I. Инвестиции в дъщерни предприятия",null,{"$f":"'Справка 5'!D27","v":0}]
["\"МБАЛ - ТЪРГОВИЩЕ\" АД","125501290","2017-03-31","8-4006",2,"II. Инвестиции в смесени предприятия",null,{"$f":"'Справка 5'!D44","v":0}]
["\"МБАЛ - ТЪРГОВИЩЕ\" АД","125501290","2017-03-31","84011",2,"III. Инвестиции в асоциирани предприятия",null,{"$f":"'Справка 5'!D61","v":0}]
["\"МБАЛ - ТЪРГОВИЩЕ\" АД","125501290","2017-03-31","8-4016",2,"IV. Инвестиции в други предприятия",null,{"$f":"'Справка 5'!D78","v":0}]
["\"МБАЛ - ТЪРГОВИЩЕ\" АД","125501290","2017-03-31","8-4025",2,"А. В СТРАНАТА",null,{"$f":"'Справка 5'!D79","v":0}]
["\"МБАЛ - ТЪРГОВИЩЕ\" АД","125501290","2017-03-31","8-4030",2,"I. Инвестиции в дъщерни предприятия",null,{"$f":"'Справка 5'!D97","v":0}]
["\"МБАЛ - ТЪРГОВИЩЕ\" АД","125501290","2017-03-31","8-4035",2,"II. Инвестиции в смесени предприятия",null,{"$f":"'Справка 5'!D114","v":0}]
["\"МБАЛ - ТЪРГОВИЩЕ\" АД","125501290","2017-03-31","8-4040",2,"III. Инвестиции в асоциирани предприятия",null,{"$f":"'Справка 5'!D131","v":0}]
["\"МБАЛ - ТЪРГОВИЩЕ\" АД","125501290","2017-03-31","8-4045",2,"IV. Инвестиции в други предприятия",null,{"$f":"'Справка 5'!D148","v":0}]
["\"МБАЛ - ТЪРГОВИЩЕ\" АД","125501290","2017-03-31","8-4050",2,"Б. В ЧУЖБИНА",null,{"$f":"'Справка 5'!D149","v":0}]
["\"МБАЛ - ТЪРГОВИЩЕ\" АД","125501290","2017-03-31","8-4001",3,"I. Инвестиции в дъщерни предприятия",null,{"$f":"'Справка 5'!E27","v":0}]
["\"МБАЛ - ТЪРГОВИЩЕ\" АД","125501290","2017-03-31","8-4006",3,"II. Инвестиции в смесени предприятия",null,{"$f":"'Справка 5'!E44","v":0}]
["\"МБАЛ - ТЪРГОВИЩЕ\" АД","125501290","2017-03-31","84011",3,"III. Инвестиции в асоциирани предприятия",null,{"$f":"'Справка 5'!E61","v":0}]
["\"МБАЛ - ТЪРГОВИЩЕ\" АД","125501290","2017-03-31","8-4016",3,"IV. Инвестиции в други предприятия",null,{"$f":"'Справка 5'!E78","v":0}]
["\"МБАЛ - ТЪРГОВИЩЕ\" АД","125501290","2017-03-31","8-4025",3,"А. В СТРАНАТА",null,{"$f":"'Справка 5'!E79","v":0}]
["\"МБАЛ - ТЪРГОВИЩЕ\" АД","125501290","2017-03-31","8-4030",3,"I. Инвестиции в дъщерни предприятия",null,{"$f":"'Справка 5'!E97","v":0}]
["\"МБАЛ - ТЪРГОВИЩЕ\" АД","125501290","2017-03-31","8-4035",3,"II. Инвестиции в смесени предприятия",null,{"$f":"'Справка 5'!E114","v":0}]
["\"МБАЛ - ТЪРГОВИЩЕ\" АД","125501290","2017-03-31","8-4040",3,"III. Инвестиции в асоциирани предприятия",null,{"$f":"'Справка 5'!E131","v":0}]
["\"МБАЛ - ТЪРГОВИЩЕ\" АД","125501290","2017-03-31","8-4045",3,"IV. Инвестиции в други предприятия",null,{"$f":"'Справка 5'!E148","v":0}]
["\"МБАЛ - ТЪРГОВИЩЕ\" АД","125501290","2017-03-31","8-4050",3,"Б. В ЧУЖБИНА",null,{"$f":"'Справка 5'!E149","v":0}]
["\"МБАЛ - ТЪРГОВИЩЕ\" АД","125501290","2017-03-31","8-4001",4,"I. Инвестиции в дъщерни предприятия",null,{"$f":"'Справка 5'!F27","v":0}]
["\"МБАЛ - ТЪРГОВИЩЕ\" АД","125501290","2017-03-31","8-4006",4,"II. Инвестиции в смесени предприятия",null,{"$f":"'Справка 5'!F44","v":0}]
["\"МБАЛ - ТЪРГОВИЩЕ\" АД","125501290","2017-03-31","84011",4,"III. Инвестиции в асоциирани предприятия",null,{"$f":"'Справка 5'!F61","v":2}]
["\"МБАЛ - ТЪРГОВИЩЕ\" АД","125501290","2017-03-31","8-4016",4,"IV. Инвестиции в други предприятия",null,{"$f":"'Справка 5'!F78","v":0}]
["\"МБАЛ - ТЪРГОВИЩЕ\" АД","125501290","2017-03-31","8-4025",4,"А. В СТРАНАТА",null,{"$f":"'Справка 5'!F79","v":2}]
["\"МБАЛ - ТЪРГОВИЩЕ\" АД","125501290","2017-03-31","8-4030",4,"I. Инвестиции в дъщерни предприятия",null,{"$f":"'Справка 5'!F97","v":0}]
["\"МБАЛ - ТЪРГОВИЩЕ\" АД","125501290","2017-03-31","8-4035",4,"II. Инвестиции в смесени предприятия",null,{"$f":"'Справка 5'!F114","v":0}]
["\"МБАЛ - ТЪРГОВИЩЕ\" АД","125501290","2017-03-31","8-4040",4,"III. Инвестиции в асоциирани предприятия",null,{"$f":"'Справка 5'!F131","v":0}]
["\"МБАЛ - ТЪРГОВИЩЕ\" АД","125501290","2017-03-31","8-4045",4,"IV. Инвестиции в други предприятия",null,{"$f":"'Справка 5'!F148","v":0}]
["\"МБАЛ - ТЪРГОВИЩЕ\" АД","125501290","2017-03-31","8-4050",4,"Б. В ЧУЖБИНА",null,{"$f":"'Справка 5'!F149","v":0}]

{"sheet":"Nomenklaturi","index":9,"n_rows":13,"n_cols":1,"rows_kept":13,"cut":false,"hidden":true,"merged":[]}
["на консолидирана основа"]
["на индивидуална основа"]
[]
[]
["Публично дружество"]
["Емитент на облигации"]
["Публично дружество/Емитент на облигации"]
["АДСИЦ"]
["Лице по §1д от ЗППЦК"]
[]
["Акции"]
["Облигации"]
["Други"]